Workbook

Sheet Biztosítási termékismertetők

Sheet Ajánlat1
C5: Kötvényszám:
AY6: UNION-Kis- és középvállalkozások felelősségbiztosítása
AY7: Biztosítási Ajánlat
C10: Módozat | F10: 7810 | L10: Üzletkötő neve: | AF10: Üzletkötő kódja:
C11: Átdolgozás: | G11: nem | P11: Előzmény kötv.száma: | X11: Adóigazgatási szám: 1049 1984-2-44 | AN11: Ajánlat azonosító:
C12: Készítette: | R12: =CONCATENATE(" Tel: ",IFERROR(VLOOKUP(G12,D172:K185,7,FALSE),"")," E-mail: ",IFERROR(VLOOKUP(G12,D172:K185,4,FALSE),"")) -> Tel: E-mail: | AM12: Hiv.szám:
C15: Szerződő / Biztosított neve:
C17: Adószáma: | V17: Tel: | AJ17: E-mail:
C19: Székhelye:
G20: ir.sz. | U20: helység | AM20: közter. | AT20: hsz.em.ajtó
C22: Levelezési Címe:
G23: ir.sz. | U23: helység | AM23: közter. | AT23: hsz.em.ajtó
C25: Biztosított tevékenység:
C27: Területi hatály:
C29: Biztosítás tartama: | K29: határozatlan, melyen belül a biztosítási időszak 1 év
C31: Biztosítási évforduló: | K31: minden évben a kockázatviselés kezdetének napja, ha ez a nap február 29-e, akkor minden év március 01. napja
C33: Kockázatviselés kezdete:
C36: Díjfizetés gyakorisága:
C38: Díjfizetés módja: | K38: a biztosító által kiállított számviteli bizonylat alapján, átutalással
C40: Dolgozói létszám:
C42: Díjszámítási alap (éves nettó árbevétel millió Forintban):
C44: Kombinált limit:
C46: Önrész:
C48: Díjtétel: | W48: =IFERROR(AF88/(X42*1000000)*100,"") -> 
C53: Kis- és középvállalkozások felelősségbiztosítása
C54: Biztosított kockázatok: | AH54: Éves díj
D55: Általános felelősségbiztosítás | AH55: =AD138 -> 
D56: Szolgáltatói felelősségbiztosítás | AH56: =IF(AC56="kérem",G146,"") -> 
D57: Szolgáltatói felelősség kiterjesztve a szolgáltatás tárgyára (egyedi záradék szerint) | AH57: =IF(AC57="kérem",G147,"") -> 
D58: Szolgáltatói felelősség kiterjesztve rakodási tevékenységre (egyedi záradék szerint)
D59: Termékfelelősség-biztosítás
D60: Kiterjesztett termékfelelősség-biztosítás
D61: Bérlői felelősségbiztosítás
D62: Bérbeadói felelősségbiztosítás
D63: Munkáltatói felelősségbiztosítás | Y63: Dolgozói létszám: | AH63: =IF(AND(AC63="kérem",Z63>0),AD142,"") -> 
D64: Környezetszennyezési felelősségbiztosítás
D65: Alvállalkozói fedezet (egyedi záradék szerint)
D66: Építőipari tevékenység fedezete (egyedi záradék szerint) | AC66: kérem | AH66: A díj már tartalmazza
D67: Területi hatály kiterjesztése Európa (egyedi záradék szerint) | AC67: kérem | AH67: =IF(orszag="Európa",G157,"") -> 
O80: Biztosítási díjösszesítő
Q82: Kis- és középvállalkozások felelősségbiztosítása | AF82: =IFERROR(C159,0) -> 0
Q84: Éves díj összesen: | AF84: =IFERROR(C159,0) -> 0
Q86: Díjfizetési gyakoriság miatti engedmény: | AF86: =IF(F124="éves",0.05,IF(F124="féléves",0.025,0)) -> 0.05
AK87: =IF(X42>1000,"1 milliárd forint forgalom felett az ajánlat nem tarifális kategóriába tartozik, ajánlatkérésével kérjük forduljon bizalommal UNION-os kapcsolattartójához.","") -> 
Q88: Engedménnyel csökkentett éves díj: | AF88: =(AF84*(1-(AF86))) -> 0
Q90: Gyakoriságnak megfelelő díj: | AF90: =IF(F124="féléves",AF88*0.5,IF(F124="negyedéves",AF88*0.25,AF88)) -> 0
N93: A biztosított három alábbi mutatója közül legalább kettő meghaladja-e a következő értékeket:
N94: Mérleg főösszege az 1,5 mrd. Ft-ot
N95: Nettó üzleti forgalma a 3 mrd. Ft-ot
N96: Átlagos alkalmazotti létszám az 1.000 főt
N98: Ezúton nyilatkozom, hogy Társaságunk :
N103: minősül.
C117: Kelt: | E117: =szerz.lakcimhelyseg -> 0 | L117: , | M117: =TODAY() -> 2021-07-01
T118: Biztosításközvetítő aláírása | AK118: Szerződő cégszerű aláírása
C121: igen
C122: nem
C124: éves | F124: éves | Q124: =VLOOKUP(K124,Tarifa!B30:D35,3,FALSE) -> 
C125: féléves
C126: negyedéves
C128: kérem | K128: Magyarország | W128: szolg.fel + alv.fel
C129: nem kérem | K129: Európa | W129: 0 | X129: 0
O132: kockázati osztály | Q132: munkáltatói felelősség díj /fő
C133: Tevékenységi lista
C134: =tev.lista ->  | O134: =IFERROR(VLOOKUP(Ajánlat1!C134,'Tevékenységi lista'!A2:C298,2,FALSE),"") ->  | Q134: =VLOOKUP(Ajánlat1!C134,'Tevékenységi lista'!A2:C298,3,FALSE) -> 
AO136: Kötvény?
C137: Általános felelősség biztosítás | L137: kock. ezrelék | P137: Forg. Korr | T137: Limitkorr | W137: Önrész | Z137: Min. Díj | AD137: Díj | AO137: FALSE
C138: =IF(X42>1000,0,X42) -> 0 | H138: mioFt | L138: =VLOOKUP(Ajánlat1!O134,Tarifa!B4:C8,2,FALSE) ->  | P138: =-0.262*LN(Ajánlat1!C138)+2.2125 ->  | T138: =VLOOKUP(K124,Tarifa!B30:C35,2,FALSE) ->  | W138: =VLOOKUP(T124,Tarifa!B40:C44,2,FALSE) ->  | Z138: =VLOOKUP(Ajánlat1!O134,Tarifa!$B$50:$C$54,2,FALSE)*VLOOKUP(K124,Tarifa!B30:D35,3,FALSE) ->  | AD138: =IFERROR(IF(C138*L138*1000*P138*T138*W138>Z138,C138*L138*1000*P138*T138*W138,Z138),"") -> 
C141: Munkáltatói felelősségbiztosítás | L141: kock. Alapdíj | P141: Létszám korr | T141: Limitkorr | W141: Önrész | Z141: Min. Díj | AD141: Díj
C142: =Z63 -> 0 | F142: fő | L142: =Ajánlat1!Q134 ->  | P142: =VLOOKUP(Ajánlat1!C142,Tarifa!E12:F20,2) -> 1 | T142: =T138 ->  | W142: =W138 ->  | Z142: =VLOOKUP(Ajánlat1!O134,Tarifa!$B$50:$C$54,2,FALSE) ->  | AD142: =IF(C138>0,IF(C142=0,"",IF(P142=0,0,IF(C142*L142*P142*T142*W142>Z142,C142*L142*P142*T142*W142,Z142))),"") -> 
F145: Kiegészítők
F146: =IF(Ajánlat1!AC56=$C$128,Tarifa!C70,0) -> 0 | G146: =IFERROR(Ajánlat1!$AD$138*Ajánlat1!F146,"") -> 
F147: =IF(Ajánlat1!AC57=$C$128,Tarifa!C71,0) -> 0 | G147: =IFERROR(Ajánlat1!$AD$138*Ajánlat1!F147,"") -> 
F148: =IF(Ajánlat1!AC58=$C$128,Tarifa!C72,0) -> 0 | G148: =IFERROR(Ajánlat1!$AD$138*Ajánlat1!F148,"") -> 
F149: =IF(Ajánlat1!AC59=$C$128,Tarifa!C73,0) -> 0 | G149: =IFERROR(Ajánlat1!$AD$138*Ajánlat1!F149,"") -> 
F150: =IF(Ajánlat1!AC60=$C$128,Tarifa!C74,0) -> 0 | G150: =IFERROR(Ajánlat1!$AD$138*Ajánlat1!F150,"") -> 
F151: =IF(Ajánlat1!AC61=$C$128,Tarifa!C75,0) -> 0 | G151: =IFERROR(Ajánlat1!$AD$138*Ajánlat1!F151,"") -> 
F152: =IF(Ajánlat1!AC62=$C$128,Tarifa!C76,0) -> 0 | G152: =IFERROR(Ajánlat1!$AD$138*Ajánlat1!F152,"") -> 
F153: =IF(Ajánlat1!AC63=$C$128,Tarifa!C77,0) -> 0
F154: =IF(Ajánlat1!AC64=$C$128,Tarifa!C78,0) -> 0 | G154: =IFERROR(Ajánlat1!$AD$138*Ajánlat1!F154,"") -> 
F155: =IF(Ajánlat1!AC65=$C$128,Tarifa!C79,0) -> 0 | G155: =IFERROR(($AD$138+G146+G147+G148)*F155,"") -> 
F156: =IF(Ajánlat1!AC66=$C$128,Tarifa!C80,0) -> 1
F157: =IF(orszag="Európa",Tarifa!C81,0) -> 0 | G157: =IFERROR(Ajánlat1!$AD$138*Ajánlat1!F157,"") -> 
C158: Kieg Díj | W158: Éves Díj
C159: =AD138+G146+G147+G148+G149+G150+G151+G152+G154+G155+G157+IF(F153=1,AD142,0) ->  | W159: =Ajánlat1!C159 -> 
D168: Lejárati Dátum | I168: Verzió | L168: lejárati jelszó
D169: 2021-12-31 | I169: v1.96 | L169: felelosseg
D172: Ambrus Péter | G172: ambrus.peter@unionbiztosito.hu | J172: 666-7656
D173: Árokszállási Zoltán | G173: ajanlatkeres@unionbiztosito.hu | J173: 486-4366
D174: Csanádi Zoltán | G174: csanadi.zoltan@unionbiztosito.hu | J174: 486-4235
D175: Dobi László | G175: dobi.laszlogabor@unionbiztosito.hu | J175: 486-4346
D176: Hajdók Viktória | G176: hajdok.viktoria@unionbiztosito.hu | J176: 486-4213
D177: Klinger József | G177: klinger.jozsef@unionbiztosito.hu | J177: 486-4232
D178: Utry Oszkár | G178: ajanlatkeres@unionbiztosito.hu | J178: 666-7652

Sheet Ajánlat2
B1: Kis és középvállallatok felelősségbiztosítása | L1: SZÍNKÓDOK, MAGYARÁZATOK
B2: Biztosított kockázatok: | C2: Általános felelősségbiztosítás
C3: valamint:
B4: Szolgáltatói felelősségbiztosítás | L4: innentől választható / legördülő menü
B5: Szolgáltatói felelősség kiterjesztve a szolgáltatás tárgyára (egyedi záradék szerint) | L5: csak akkor választható, ha a szolg fel korábban kiválasztásra került
B6: Szolgáltatói felelősség kiterjesztve rakodási tevékenységre (egyedi záradék szerint) | L6: csak akkor választható, ha a szolg fel korábban kiválasztásra került
B7: Termékfelelősség-biztosítás
B8: Kiterjesztett termékfelelősség-biztosítás | L8: csak akkor választható, ha a term fel korábban kiválasztásra került
B9: Bérlői felelősségbiztosítás
B10: Bérbeadói felelősségbiztosítás
B11: Munkáltatói felelősségbiztosítás
B12: Környezetszennyezési felelősségbiztosítás
B13: Alvállalkozói fedezet (egyedi záradék szerint)
B14: Építőipari tevékenység fedezete (egyedi záradék szerint) | L14: ha 5-ös kock. osztály, ez feljön, ÉS az önrész kötelezően min. 10%, de min 100 000 Ft/kár
B15: Területi hatály kiterjesztése Európa (egyedi záradék szerint) | L15: ha Európa
B17: Dolgozói létszám: | D17: 14 | E17: fő | L17: opcionálisan (munk fel esetén) kitöltendő mező
B19: Díjszámítási alap (éves bruttó forgalom): | D19: 2465 | E19: MFt | L19: kötelezően kitöltendő mező
B21: Kombinált limit: | D21: 5 MFt/kár, 10 MFt/év | L21: választható limitek legördülő menüben
B24: Önrész: | D24: 10 %, de min. 25 000 Ft | L24: választható önrészek legördülő menüben
B26: Díjtétel: | D26: =D28/(D19*1000000)*100 ->  | L26: háttértábla (tarifáló) alapján
B28: Éves díj: | D28: =Ajánlat1!C159 ->  | L28: háttértábla (tariáfló) alapján
B30: Biztosítási feltételek
B32: Felelősségbiztosítások Szerződési Feltételei (U70060)
B33: Általános felelősségbiztosítási feltételek (U71028)
B34: Szolgáltatói felelősségbiztosítás Különös Biztosítási Feltételek (U71029) | L34: ha építőipari tevékenység fedezetét választja, akkor ez jön föl az A38 helyett
B35: Általános felelősségbiztosítás feltételei, a 3./h.) pontban írt kizáró rendelkezés első fordulatának feloldása mellett azzal, hogy az épületek, építmények repedéseivel összefüggésben bekövetkezett károkra, valamint az épületben, építményben vibráció, vagy – a föld-, illetve egyéb támaszt is ideértve – teherhordó elem eltávolítása, meggyengítése, vagy megépítésének elmaradása miatt bekövetkező károkra vonatkozó kizárás változatlanul hatályban marad. | L35: innentől akkor jönnek föl, ha fent kiválasztásra kerültek
B36: Szolgáltatói felelősségbiztosítás különös feltételei, a 3./i.) pontban írt kizáró rendelkezés első fordulatának feloldása mellett azzal, hogy az épületek, építmények repedéseivel összefüggésben bekövetkezett károkra, valamint az épületben, építményben vibráció, vagy – a föld-, illetve egyéb támaszt is ideértve – teherhordó elem eltávolítása, meggyengítése, vagy megépítésének elmaradása miatt bekövetkező károkra vonatkozó kizárás változatlanul hatályban marad. | L36: ha építőipari tevékenység fedezetét választja, akkor ez jön föl az A41 helyett
B38: Szolgáltatás tárgyában okozott károk egyedi záradéka 1. A szolgáltatói felelősségbiztosítási fedezet - a Szolgáltatói felelősségbiztosítás különös feltételei 3.f.) pontjában, valamint e körben (a letéti felelősséget ide nem értve) a 3.e.) pontjában írt kizáró rendelkezések feloldása, de egyéb rendelkezései változatlan alkalmazása mellett - kiterjed azokban a dolgokban keletkezett károkra is, amelyek a szolgáltatás tárgyát képezik, illetve amelyekre a biztosított szolgáltatása irányul. 2. Nem terjed ki a biztosítási fedezet a) az olyan vagyontárgyak káraira, melyek a szolgáltatás megkezdésekor már sérültek, hibásak, elhasználódottak voltak, vagy egyéb okból cserére szorultak, b) az esztétikai károkra, c) a szolgáltatás korszerűtlenségével összefüggő kártérítési igényekre. A jelen egyedi záradékban nem szabályozott kérdések tekintetében a Felelősségbiztosítások Szerződési Feltételei, a Szolgáltatói felelősségbiztosítás különös biztosítási feltételei, valamint a mindenkor hatályos magyar jogszabályok vonatkozó rendelkezései irányadóak. | L38: a fedezet választása esetén "feljön"
B40: Rakodási szolgáltatást nyújtók felelősségbiztosításának egyedi záradéka A jelen Egyedi Záradék alkalmazásában biztosítási esemény az idegen gépjárműre, illetve gépjárműről történő le- és felrakodás során az idegen gépjárműben okozott dologi kár, abban az esetben is, ha a rakodás daruval, illetve targoncával történt. A fedezet kiterjed a telephelyen daruval, illetve targoncával harmadik személyeknek okozott egyéb dologi károkra is, ide nem értve a rakodott áruban okozott kárt. A jelen Egyedi Záradékban nem szabályozott kérdések tekintetében a Szolgáltatói felelősségbiztosítás különös feltételeinek rendelkezései irányadóak. | L40: a fedezet választása esetén "feljön"
B42: Termékfelelősség-biztosítás Különös Biztosítási Feltételek (U70061) | L42: a fedezet választása esetén "feljön"
B43: Kiterjesztett termékfelelősség-biztosítás Kiegészítő Biztosítási Feltételek (U70062) | L43: a fedezet választása esetén "feljön"
B44: Bérlői felelősségbiztosítás különös biztosítási feltételek (U71034) | L44: a fedezet választása esetén "feljön"
B45: Bérbeadói felelősségbiztosítás különös biztosítási feltételek (U71033) | L45: a fedezet választása esetén "feljön"
B46: Munkáltatói felelősségbiztosítás különös biztosítási feltételek (U70063/1) | L46: a fedezet választása esetén "feljön"
B47: Környezetszennyezési felelősségbiztosítás különös biztosítási feltételek (U71032) | L47: a fedezet választása esetén "feljön"
B49: Az általános felelősségbiztosítási fedezet kiterjesztése alvállalkozókra Az általános felelősségbiztosítási fedezet a szerződésben írt limit erejéig, a vonatkozó feltételek változatlan alkalmazása mellett kiterjed a biztosított alvállalkozóira is, amennyiben a kárt a biztosított alvállalkozójaként eljárva, ebbéli minőségükben okozták. A jelen felelősségbiztosítási fedezet annyiban áll fönn, amennyiben a kár más biztosítási fedezet (elsődleges fedezet) alapján nem térül meg. A jelen felelősségbiztosítás elsődleges fedezet fennállta esetén a kárra csak annyiban nyújt fedezetet, amennyiben az elsődleges fedezet a biztosítási esemény bekövetkezte előtt bármely okból megszűnt, vagy a biztosítási feltételek eltérő rendelkezése miatt az elsődleges fedezet alapján szolgáltatás nyújtására nem kerül sor, vagy a limit alacsonyabb volta miatt az elsődleges fedezet alapján nyújtott szolgáltatás részleges. A biztosító által nyújtott alvállalkozói fedezet nem szélesebb, mint a vonatkozó feltételek alapján a biztosított számára nyújtott fedezet. Nem terjed ki a fedezet ezen alvállalkozók további alvállalkozóira, valamint a biztosítottak egymásnak okozott káraira. | L49: alvállalkozói fedezet esetén "feljön"
B51: A szolgáltatói felelősségbiztosítási fedezet kiterjesztése alvállalkozókra A szolgáltatói felelősségbiztosítási fedezet a szerződésben írt limit erejéig, a vonatkozó feltételek változatlan alkalmazása mellett kiterjed a biztosított alvállalkozóira is, amennyiben a kárt a biztosított alvállalkozójaként eljárva, ebbéli minőségükben okozták. A jelen felelősségbiztosítási fedezet annyiban áll fönn, amennyiben a kár más biztosítási fedezet (elsődleges fedezet) alapján nem térül meg. A jelen felelősségbiztosítás elsődleges fedezet fennállta esetén a kárra csak annyiban nyújt fedezetet, amennyiben az elsődleges fedezet a biztosítási esemény bekövetkezte előtt bármely okból megszűnt, vagy a biztosítási feltételek eltérő rendelkezése miatt az elsődleges fedezet alapján szolgáltatás nyújtására nem kerül sor, vagy a limit alacsonyabb volta miatt az elsődleges fedezet alapján nyújtott szolgáltatás részleges. A biztosító által nyújtott alvállalkozói fedezet nem szélesebb, mint a vonatkozó feltételek alapján a biztosított számára nyújtott fedezet. Nem terjed ki a fedezet ezen alvállalkozók további alvállalkozóira, valamint a biztosítottak egymásnak okozott káraira. | L51: csak akkor jön fel, ha a szolg fel és az alvállalkozói fedezet korábban kiválasztásra került
B53: Építőipari tevékenység fedezetének egyedi záradéka
B54: A felelősségbiztosítási fedezet annyiban áll fönn, amennyiben a kár más biztosítási fedezet (elsődleges fedezet) alapján nem térül meg. A jelen felelősségbiztosítás elsődleges fedezet fennállta esetén a kárra csak annyiban nyújt fedezetet, amennyiben az elsődleges fedezet a biztosítási esemény bekövetkezte előtt bármely okból megszűnt, vagy a biztosítási feltételek eltérő rendelkezése miatt az elsődleges fedezet alapján szolgáltatás nyújtására nem kerül sor, vagy a limit alacsonyabb volta miatt az elsődleges fedezet alapján nyújtott szolgáltatás részleges.
B55: A biztosítási fedezet nem terjed ki az alábbi tevékenységekre:
B56: 1. bontási munka,
B57: 2. gépi földmunka,
B58: 3. tetőcsere, tetőjavítás, a héjazat megbontásával járó munka, tetőtér-beépítés,
B59: 4. ún. foghíjbeépítés,
B60: 5. mélyépítési tevékenység, illetve a vonalas létesítményeken végzett munkák, 6. az egyszerű bejelentéshez kötött építési tevékenységhez kapcsolódó fővállalkozói kivitelezői tevékenység, 7. napelem, napkollektor szerelése. | L60: 5-ös kockázati osztály esetén kötelező (feljön)
B62: A biztosítási fedezet területi hatályának kiterjesztése Európa területére | L62: Ha Európa
B63: A biztosítás területi hatálya kiterjed az Európa területén okozott, illetve bekövetkezett károkra is.
D66: Szerződő cégszerű aláírása
B69: EGYÉB
B71: A biztosítási szerződésre a fentiekben hivatkozott biztosítási feltételek és az ajánlatban foglalt egyedi záradékok együttesen vonatkoznak. A Biztosító nem nyújt fedezetet, nem teljesít kárkifizetést, valamint nem nyújt szolgáltatást, amennyiben ezen fedezet nyújtásával, illetve kár kifizetésével a Biztosító sértené az Egyesült Nemzetek Szervezetének határozata szerinti bármely szankcióit, rendelkezéseit, vagy rendeleteit, valamint Magyarország, az Európai Unió, illetve az Egyesült Államok kereskedelmi, pénzügyi embargóit vagy gazdasági szankcióit, törvényeit vagy rendeleteit, (feltéve, hogy ezek nem sértik az biztosítóra alkalmazandó szabályozásokat vagy nemzeti jogszabályokat). Nem terjed ki a biztosítás azokra a károkra, amelyek bármilyen (bakteriális, vírusos, stb.) kórokozói eredetű járványos megbetegedéssel, betegséggel, vagy fertőzéssel összefüggésben következnek be, és amelyek a kórokozó bármely fajtájától, mutációjától, illetve variánsától származnak.
B73: Díjfizetési engedmény:
B74: Amennyiben a szerződő/biztosított a biztosítási díjat az alábbi díjfizetési gyakorisággal egyenlíti ki, akkor a biztosító a számára a fentiekben megállapított biztosítási díjakból az alábbi díjfizetési engedményeket nyújtja:
B75: - éves díjfizetés esetén: 5,0%
B76: - féléves díjfizetés esetén: 2,5%.
B78: Ajánlatot teszek a túloldalon részletezett biztosításra, amelynek alapján az Union Vienna Insurance Group Biztosító Zrt. azt a kötelezettséget vállalja, hogy díjfizetés ellenében készpénzben megtéríti a különös feltételekben felsorolt biztosítási események során bekövetkező azon károkat, amelyekre a biztosítási szerződés kiterjed. Kijelentem, hogy az ajánlattétel előtt biztosítási igényem felmérése nyomán a vonatkozó termékismertetőket átvettem, áttanulmányoztam és megértettem, a jogszabályban előírt tájékoztatást megkaptam, a biztosítási feltételeket átvettem, áttanulmányoztam és megértettem. Kijelentem, hogy az Adatkezelési tájékoztató a biztosítási ajánlat aláírását megelőzően részemre átadásra került, és tudomással bírok arról, hogy ezen dokumentum a biztosító honlapján (www.union.hu) bármikor megtekinthető.
B80: Tudomásul veszem, hogy: | C80: - jelen ajánlat a biztosító kockázatelbírálásának alapja, továbbá, hogy a biztosítónak az ajánlat beérkezésétől számított 15 nap áll rendelkezésére a kockázat elbírálására,
C81: - a biztosító a kockázatelbírálás eredményeként az ajánlatot jogosult elutasítani, az elutasítást nem köteles megindokolni.
B86: Kijelentem, hogy: | C86: - a Felelősségbiztosítások Szerződési Feltételeiben, az Általános Felelősségi Feltételekben és a Különös Felelősségbiztosítási Feltételekben foglaltakat az ajánlat aláírása előtt megismertem,
C87: - a közölt adatok a valóságnak megfelelnek,
C88: - jelen ajánlatomban minden biztosítási szándékommal kapcsolatos igényemet rögzítettek, más szóbeli megállapodás nem történt.
B90: ="Kelt: " & keltez & ", " & TEXT(keltdat, "ÉÉÉÉ.hh.nn") -> Kelt: 0, 2021.07.01
D91: Szerződő cégszerű aláírása
D92: UNION Vienna Insurance Group Biztosító Zrt.

Sheet Tarifa (hidden)
I1: Összeadás | J1: 4/a + 6 + 4/b
A2: 1/a | B2: Általános felelősségbiztosítás díjtételek (ezrelék): | D2: 1/b | E2: Munkáltatói felelősségbiztosítás alapdíj /fő kockázati osztályonként: | F2: Ft
B3: kockázati osztály | C3: ezrelék | E3: kockázati osztály | J3: Díjfizetési gyakoriság kedvezménye:
B4: 1 | C4: 0.24 | E4: 1 | F4: 600 | J4: féléves | K4: 2,5%
B5: 2 | C5: 0.3 | E5: 2 | F5: 1200 | J5: éves | K5: 5%
B6: 3 | C6: 0.33 | E6: 3 | F6: 1800
B7: 4 | C7: 0.45 | E7: 4 | F7: 2400
B8: 5 | C8: 0.84 | E8: 5 | F8: 4200
A11: 2/a | B11: Forgalom megadása / forgalomkorrekció (függvény) | D11: 2/b | E11: Létszámkorrekció (fő):
B12: =-0,262*LN(x)+2,2125 | E12: 0 | F12: 1
E13: 11 | F13: 0.98
E14: 26 | F14: 0.95
E15: 51 | F15: 0.9
E16: 76 | F16: 0.85
E17: 101 | F17: 0.8
E18: 151 | F18: 0.77
E19: 201 | F19: 0.73
E20: 251 | F20: 0
A28: 3/a és 3/b | B28: Limit kiválasztása / limitkorrekció:
B29: mioFt/kár/év | C29: Limitkorrekció:
B30: 5 MFt/kár, 10 MFt/év | C30: 0.8 | D30: 1
B31: 10 MFt/kár, 20 MFt/év | C31: 1 | D31: 1.25
B32: 20 MFt/kár, 40 MFt/év | C32: 1.4 | D32: 1.75
B33: 25 MFt/kár, 50 MFt/év | C33: 1.55 | D33: 1.94
B34: 30 MFt/kár, 60 MFt/év | C34: 1.7 | D34: 2.13
B35: 50 MFt/kár, 100 MFt/év | C35: 2.05 | D35: 2.56
A38: 4/a és 4/b | B38: Önrész kiválasztása / önrészkorrekció:
C39: Önrészkorrekció:
B40: 10 %, de min. 25 000 Ft | C40: 1
B41: 10 %, de min. 50 000 Ft | C41: 0.95
B42: 10 %, de min. 100 000 Ft | C42: 0.85
B43: 10 %, de min. 250 000 Ft | C43: 0.65
B44: 10 %, de min. 500 000 Ft | C44: 0.5
A48: 5 | B48: Minimáldíj figyelembe vétele (általános és munkáltatói felelősségbiztosítás): | C48: 4/a és 4/b összevetése a minimáldíjjal
B49: kockázati osztály
B50: 1 | C50: 12000
B51: 2 | C51: 16000
B52: 3 | C52: 17500
B53: 4 | C53: 24000
B54: 5 | C54: 67500
A58: 6 | B58: Fedezeti "szorzók" (pl.: 0,5 szorzó = +50% díj) | C58: alap a 2/a "szám" vagy a 3 (ált. fel. min. díj)
B59: bérlői felelősség | C59: 0.3
B60: bérbeadói felelősség | C60: 0.3
B61: szolgáltatói felelősség | C61: 0.8
B62: szolgáltatói felelősség kiterjesztve a szolgáltatás tárgyára | C62: 0.4
B63: szolgáltatói felelősség kiterjesztve rakodási tevékenységre | C63: 0.4
B64: termékfelelősség | C64: 0.8
B65: kiterjesztett termékfelelősség | C65: 1
B66: környezetszennyezési felelősség | C66: 0.5
B67: területi hatály kiterjesztése Európa | C67: 0.5
B68: alvállalkozói fedezet | C68: 0.2
B70: Szolgáltatói felelősségbiztosítás | C70: 0.8
B71: Szolgáltatói felelősség kiterjesztve a szolgáltatás tárgyára (egyedi záradék szerint) | C71: 0.4
B72: Szolgáltatói felelősség kiterjesztve rakodási tevékenységre (egyedi záradék szerint) | C72: 0.4
B73: Termékfelelősség-biztosítás | C73: 0.8
B74: Kiterjesztett termékfelelősség-biztosítás | C74: 1
B75: Bérlői felelősségbiztosítás | C75: 0.3
B76: Bérbeadói felelősségbiztosítás | C76: 0.3
B77: Munkáltatói felelősségbiztosítás | C77: 1
B78: Környezetszennyezési felelősségbiztosítás | C78: 0.5
B79: Alvállalkozói fedezet (egyedi záradék szerint) | C79: 0.2
B80: Építőipari tevékenység fedezete (egyedi záradék szerint) | C80: 1
B81: Területi hatály kiterjesztése Európa (egyedi záradék szerint) | C81: 0.5
H83: dt. | I83: Min.díj
F84: Kock. Oszt. | G84: 2 | H84: =VLOOKUP(G84,B4:C8,2,FALSE) -> 0.3 | I84: =VLOOKUP(G84,B50:C54,2,FALSE) -> 16000
F87: =-0.262*LN(G87)+2.2125 -> 2.2125 | G87: =+G88-1 -> 1 | H87: 2 | I87: =$H$84*F87*1000*G87 -> 663.75
F88: 2.030895439 | G88: 2 | H88: 2 | I88: 1218.537263
F89: 1.92466358 | G89: 3 | H89: 2 | I89: 1732.197222
F90: 1.849290877 | G90: 4 | H90: 2 | I90: 2219.149053
F91: 1.790827267 | G91: 5 | H91: 2 | I91: 2686.2409
F92: 1.743059019 | G92: 6 | H92: 2 | I92: 3137.506234
F93: 1.702671541 | G93: 7 | H93: 2 | I93: 3575.610236
F94: 1.667686316 | G94: 8 | H94: 2 | I94: 4002.447159
F95: 1.636827161 | G95: 9 | H95: 2 | I95: 4419.433334
F96: 1.609222706 | G96: 10 | H96: 2 | I96: 4827.668117
F97: 1.584251439 | G97: 11 | H97: 1.8 | I97: 5228.029747
F98: 1.561454458 | G98: 12 | H98: 1.8 | I98: 5621.236048
F99: 1.540483268 | G99: 13 | H99: 1.8 | I99: 6007.884747
F100: 1.52106698 | G100: 14 | H100: 1.8 | I100: 6388.481314
F101: 1.502990847 | G101: 15 | H101: 1.8 | I101: 6763.458813
F102: 1.486081755 | G102: 16 | H102: 1.8 | I102: 7133.192423
F103: 1.470198104 | G103: 17 | H103: 1.8 | I103: 7498.01033
F104: 1.455222599 | G104: 18 | H104: 1.8 | I104: 7858.202037
F105: 1.441056987 | G105: 19 | H105: 1.8 | I105: 8214.024829
F106: 1.427618144 | G106: 20 | H106: 1.8 | I106: 8565.708866
F107: 1.414835121 | G107: 21 | H107: 1.8 | I107: 8913.461264
F108: 1.402646877 | G108: 22 | H108: 1.8 | I108: 9257.46939
F109: 1.391000515 | G109: 23 | H109: 1.8 | I109: 9597.903556
F110: 1.379849896 | G110: 24 | H110: 1.8 | I110: 9934.919254
F111: 1.369154534 | G111: 25 | H111: 1.8 | I111: 10268.659
F112: 1.358878707 | G112: 26 | H112: 1.45 | I112: 10599.25391
F113: 1.348990741 | G113: 27 | H113: 1.45 | I113: 10926.825
F114: 1.339462418 | G114: 28 | H114: 1.45 | I114: 11251.48431
F115: 1.330268493 | G115: 29 | H115: 1.45 | I115: 11573.33589
F116: 1.321386286 | G116: 30 | H116: 1.45 | I116: 11892.47657
F117: 1.312795352 | G117: 31 | H117: 1.45 | I117: 12208.99678
F118: 1.304477193 | G118: 32 | H118: 1.45 | I118: 12522.98106
F119: 1.296415019 | G119: 33 | H119: 1.45 | I119: 12834.50869
F120: 1.288593543 | G120: 34 | H120: 1.45 | I120: 13143.65413
F121: 1.280998808 | G121: 35 | H121: 1.45 | I121: 13450.48748
F122: 1.273618038 | G122: 36 | H122: 1.45 | I122: 13755.07481
F123: 1.266439507 | G123: 37 | H123: 1.45 | I123: 14057.47853
F124: 1.259452426 | G124: 38 | H124: 1.45 | I124: 14357.75766
F125: 1.252646849 | G125: 39 | H125: 1.45 | I125: 14655.96813
F126: 1.246013583 | G126: 40 | H126: 1.45 | I126: 14952.163
F127: 1.239544119 | G127: 41 | H127: 1.45 | I127: 15246.39266
F128: 1.23323056 | G128: 42 | H128: 1.45 | I128: 15538.70506
F129: 1.22706557 | G129: 43 | H129: 1.45 | I129: 15829.14585
F130: 1.221042316 | G130: 44 | H130: 1.45 | I130: 16117.75857
F131: 1.215154428 | G131: 45 | H131: 1.45 | I131: 16404.58477
F132: 1.209395954 | G132: 46 | H132: 1.45 | I132: 16689.66417
F133: 1.203761328 | G133: 47 | H133: 1.45 | I133: 16973.03473
F134: 1.198245335 | G134: 48 | H134: 1.45 | I134: 17254.73283
F135: 1.192843082 | G135: 49 | H135: 1.45 | I135: 17534.7933
F136: 1.187549973 | G136: 50 | H136: 1.45 | I136: 17813.24959
F137: 1.182361684 | G137: 51 | H137: 1.1 | I137: 18090.13377
F138: 1.177274146 | G138: 52 | H138: 1.1 | I138: 18365.47667
F139: 1.172283519 | G139: 53 | H139: 1.1 | I139: 18639.30795
F140: 1.16738618 | G140: 54 | H140: 1.1 | I140: 18911.65611
F141: 1.162578705 | G141: 55 | H141: 1.1 | I141: 19182.54864
F142: 1.157857857 | G142: 56 | H142: 1.1 | I142: 19452.012
F143: 1.153220568 | G143: 57 | H143: 1.1 | I143: 19720.07171
F144: 1.148663931 | G144: 58 | H144: 1.1 | I144: 19986.7524
F145: 1.14418519 | G145: 59 | H145: 1.1 | I145: 20252.07786
F146: 1.139781725 | G146: 60 | H146: 1.1 | I146: 20516.07104
F147: 1.135451048 | G147: 61 | H147: 1.1 | I147: 20778.75417
F148: 1.131190791 | G148: 62 | H148: 1.1 | I148: 21040.14871
F149: 1.126998702 | G149: 63 | H149: 1.1 | I149: 21300.27546
F150: 1.122872632 | G150: 64 | H150: 1.1 | I150: 21559.15454
F151: =-0.262*LN(G151)+2.2125 -> 1.118810535 | G151: 65 | H151: 1.1 | I151: =$H$84*F151*1000*G151 -> 21816.80544
F152: 1.114810458 | G152: 66 | H152: 1.1 | I152: 22073.24706
F153: 1.110870534 | G153: 67 | H153: 1.1 | I153: 22328.49773
F154: 1.106988981 | G154: 68 | H154: 1.1 | I154: 22582.57522
F155: 1.103164096 | G155: 69 | H155: 1.1 | I155: 22835.49678
F156: 1.099394247 | G156: 70 | H156: 1.1 | I156: 23087.27918
F157: 1.095677872 | G157: 71 | H157: 1.1 | I157: 23337.93868
F158: 1.092013477 | G158: 72 | H158: 1.1 | I158: 23587.4911
F159: 1.088399626 | G159: 73 | H159: 1.1 | I159: 23835.95182
F160: 1.084834946 | G160: 74 | H160: 1.1 | I160: 24083.33579
F161: 1.081318114 | G161: 75 | H161: 1.1 | I161: 24329.65757
F162: 1.077847865 | G162: 76 | H162: 1.1 | I162: 24574.93132
F163: 1.074422979 | G163: 77 | H163: 1.1 | I163: 24819.17083
F164: 1.071042287 | G164: 78 | H164: 1.1 | I164: 25062.38953
F165: 1.067704663 | G165: 79 | H165: 1.1 | I165: 25304.6005
F166: 1.064409022 | G166: 80 | H166: 1.1 | I166: 25545.81652
F167: 1.061154321 | G167: 81 | H167: 1.1 | I167: 25786.05001
F168: 1.057939557 | G168: 82 | H168: 1.1 | I168: 26025.31311
F169: 1.054763761 | G169: 83 | H169: 1.1 | I169: 26263.61764
F170: 1.051625999 | G170: 84 | H170: 1.1 | I170: 26500.97517
F171: 1.048525371 | G171: 85 | H171: 1.1 | I171: 26737.39696
F172: 1.045461008 | G172: 86 | H172: 1.1 | I172: 26972.89402
F173: 1.042432073 | G173: 87 | H173: 1.1 | I173: 27207.4771
F174: 1.039437755 | G174: 88 | H174: 1.1 | I174: 27441.15672
F175: 1.036477271 | G175: 89 | H175: 1.1 | I175: 27673.94314
F176: 1.033549866 | G176: 90 | H176: 1.1 | I176: 27905.84639
F177: 1.030654809 | G177: 91 | H177: 1.1 | I177: 28136.87629
F178: 1.027791393 | G178: 92 | H178: 1.1 | I178: 28367.04244
F179: 1.024958933 | G179: 93 | H179: 1.1 | I179: 28596.35422
F180: 1.022156767 | G180: 94 | H180: 1.1 | I180: 28824.82083
F181: 1.019384254 | G181: 95 | H181: 1.1 | I181: 29052.45125
F182: 1.016640774 | G182: 96 | H182: 1.1 | I182: 29279.25429
F183: 1.013925724 | G183: 97 | H183: 1.1 | I183: 29505.23856
F184: 1.011238521 | G184: 98 | H184: 1.1 | I184: 29730.41251
F185: 1.008578599 | G185: 99 | H185: 1.1 | I185: 29954.7844
F186: 1.005945411 | G186: 100 | H186: 1.1 | I186: 30178.36234
F187: 1.003338425 | G187: 101 | H187: 0.8 | I187: 30401.15427
F188: 1.000757123 | G188: 102 | H188: 0.8 | I188: 30623.16796
F189: 0.9982010051 | G189: 103 | H189: 0.8 | I189: 30844.41106
F190: 0.9956695844 | G190: 104 | H190: 0.8 | I190: 31064.89103
F191: 0.9931623883 | G191: 105 | H191: 0.8 | I191: 31284.61523
F192: 0.9906789573 | G192: 106 | H192: 0.8 | I192: 31503.59084
F193: 0.9882188454 | G193: 107 | H193: 0.8 | I193: 31721.82494
F194: 0.9857816185 | G194: 108 | H194: 0.8 | I194: 31939.32444
F195: 0.9833668549 | G195: 109 | H195: 0.8 | I195: 32156.09615
F196: 0.9809741442 | G196: 110 | H196: 0.8 | I196: 32372.14676
F197: 0.9786030873 | G197: 111 | H197: 0.8 | I197: 32587.48281
F198: 0.9762532957 | G198: 112 | H198: 0.8 | I198: 32802.11074
F199: 0.9739243915 | G199: 113 | H199: 0.8 | I199: 33016.03687
F200: 0.9716160065 | G200: 114 | H200: 0.8 | I200: 33229.26742
F201: 0.9693277824 | G201: 115 | H201: 0.8 | I201: 33441.80849
F202: 0.9670593699 | G202: 116 | H202: 0.8 | I202: 33653.66607
F203: 0.9648104291 | G203: 117 | H203: 0.8 | I203: 33864.84606
F204: 0.9625806284 | G204: 118 | H204: 0.8 | I204: 34075.35425
F205: 0.9603696448 | G205: 119 | H205: 0.8 | I205: 34285.19632
F206: 0.9581771634 | G206: 120 | H206: 0.8 | I206: 34494.37788
F207: 0.9560028771 | G207: 121 | H207: 0.8 | I207: 34702.90444
F208: 0.9538464863 | G208: 122 | H208: 0.8 | I208: 34910.7814
F209: 0.9517076989 | G209: 123 | H209: 0.8 | I209: 35118.01409
F210: 0.9495862298 | G210: 124 | H210: 0.8 | I210: 35324.60775
F211: 0.9474818008 | G211: 125 | H211: 0.8 | I211: 35530.56753
F212: 0.9453941404 | G212: 126 | H212: 0.8 | I212: 35735.89851
F213: 0.9433229833 | G213: 127 | H213: 0.8 | I213: 35940.60567
F214: 0.9412680709 | G214: 128 | H214: 0.8 | I214: 36144.69392
F215: =-0.262*LN(G215)+2.2125 -> 0.9392291501 | G215: 129 | H215: 0.8 | I215: =$H$84*F215*1000*G215 -> 36348.16811
F216: 0.937205974 | G216: 130 | H216: 0.8 | I216: 36551.03299
F217: 0.9351983013 | G217: 131 | H217: 0.8 | I217: 36753.29324
F218: 0.9332058963 | G218: 132 | H218: 0.8 | I218: 36954.95349
F219: 0.9312285284 | G219: 133 | H219: 0.8 | I219: 37156.01828
F220: 0.9292659724 | G220: 134 | H220: 0.8 | I220: 37356.49209
F221: 0.927318008 | G221: 135 | H221: 0.8 | I221: 37556.37933
... 1865 more rows

Sheet Tevékenységi lista (hidden)
A1: Biztosított tevékenység: | B1: kockázati osztály | C1: munkáltatói felelősség díj /fő
A2: ABC, élelmiszer jellegű vegyeskereskedés | B2: 2 | C2: 1200 | G2: =IF(--ISNUMBER(SEARCH(tev.lista,A2)),MAX($G$1:G1)+1,"") -> 1 | H2: =IFERROR(INDEX($A$2:$A$298,MATCH(ROWS($G$2:G2),$G$2:$G$298,0)),"") -> ABC, élelmiszer jellegű vegyeskereskedés | J2: =$H$2:INDEX($H$2:$H$298,COUNTIF($H$2:$H$298,"?*")) -> ABC, élelmiszer jellegű vegyeskereskedés
A3: Acélkereskedelem | B3: 2 | C3: 1200 | G3: =IF(--ISNUMBER(SEARCH(tev.lista,A3)),MAX($G$1:G2)+1,"") -> 2 | H3: =IFERROR(INDEX($A$2:$A$298,MATCH(ROWS($G$2:G3),$G$2:$G$298,0)),"") -> Acélkereskedelem
A4: Acélszerkezetépítés | B4: 5 | C4: 4200 | G4: =IF(--ISNUMBER(SEARCH(tev.lista,A4)),MAX($G$1:G3)+1,"") -> 3 | H4: =IFERROR(INDEX($A$2:$A$298,MATCH(ROWS($G$2:G4),$G$2:$G$298,0)),"") -> Acélszerkezetépítés
A5: Ács, állványozó | B5: 5 | C5: 4200 | G5: =IF(--ISNUMBER(SEARCH(tev.lista,A5)),MAX($G$1:G4)+1,"") -> 4 | H5: =IFERROR(INDEX($A$2:$A$298,MATCH(ROWS($G$2:G5),$G$2:$G$298,0)),"") -> Ács, állványozó
A6: Ajándék, bizsu kereskedés | B6: 2 | C6: 1200 | G6: =IF(--ISNUMBER(SEARCH(tev.lista,A6)),MAX($G$1:G5)+1,"") -> 5 | H6: =IFERROR(INDEX($A$2:$A$298,MATCH(ROWS($G$2:G6),$G$2:$G$298,0)),"") -> Ajándék, bizsu kereskedés
A7: Akkumulátor kereskedelem | B7: 4 | C7: 1200 | G7: =IF(--ISNUMBER(SEARCH(tev.lista,A7)),MAX($G$1:G6)+1,"") -> 6 | H7: =IFERROR(INDEX($A$2:$A$298,MATCH(ROWS($G$2:G7),$G$2:$G$298,0)),"") -> Akkumulátor kereskedelem
A8: Akkumulátor, szárazelemgyártás | B8: 3 | C8: 2400 | G8: =IF(--ISNUMBER(SEARCH(tev.lista,A8)),MAX($G$1:G7)+1,"") -> 7 | H8: =IFERROR(INDEX($A$2:$A$298,MATCH(ROWS($G$2:G8),$G$2:$G$298,0)),"") -> Akkumulátor, szárazelemgyártás
A9: Állateledel kereskedés | B9: 2 | C9: 1200 | G9: =IF(--ISNUMBER(SEARCH(tev.lista,A9)),MAX($G$1:G8)+1,"") -> 8 | H9: =IFERROR(INDEX($A$2:$A$298,MATCH(ROWS($G$2:G9),$G$2:$G$298,0)),"") -> Állateledel kereskedés
A10: Általános rendeltetésű gépek és berendezések gyártása | B10: 3 | C10: 2400 | G10: =IF(--ISNUMBER(SEARCH(tev.lista,A10)),MAX($G$1:G9)+1,"") -> 9 | H10: =IFERROR(INDEX($A$2:$A$298,MATCH(ROWS($G$2:G10),$G$2:$G$298,0)),"") -> Általános rendeltetésű gépek és berendezések gyártása
A11: Antikvárium | B11: 2 | C11: 1200 | G11: =IF(--ISNUMBER(SEARCH(tev.lista,A11)),MAX($G$1:G10)+1,"") -> 10 | H11: =IFERROR(INDEX($A$2:$A$298,MATCH(ROWS($G$2:G11),$G$2:$G$298,0)),"") -> Antikvárium
A12: Árnyékolástechnikai berendezések kereskedelme és telepítése | B12: 5 | C12: 4200 | G12: =IF(--ISNUMBER(SEARCH(tev.lista,A12)),MAX($G$1:G11)+1,"") -> 11 | H12: =IFERROR(INDEX($A$2:$A$298,MATCH(ROWS($G$2:G12),$G$2:$G$298,0)),"") -> Árnyékolástechnikai berendezések kereskedelme és telepítése
A13: Asztalosműhely | B13: 4 | C13: 2400 | G13: =IF(--ISNUMBER(SEARCH(tev.lista,A13)),MAX($G$1:G12)+1,"") -> 12 | H13: =IFERROR(INDEX($A$2:$A$298,MATCH(ROWS($G$2:G13),$G$2:$G$298,0)),"") -> Asztalosműhely
A14: Automatika és robotok gyártása | B14: 3 | C14: 2400 | G14: =IF(--ISNUMBER(SEARCH(tev.lista,A14)),MAX($G$1:G13)+1,"") -> 13 | H14: =IFERROR(INDEX($A$2:$A$298,MATCH(ROWS($G$2:G14),$G$2:$G$298,0)),"") -> Automatika és robotok gyártása
A15: Automatika és robotok kereskedelme | B15: 2 | C15: 1200 | G15: =IF(--ISNUMBER(SEARCH(tev.lista,A15)),MAX($G$1:G14)+1,"") -> 14 | H15: =IFERROR(INDEX($A$2:$A$298,MATCH(ROWS($G$2:G15),$G$2:$G$298,0)),"") -> Automatika és robotok kereskedelme
A16: Bababolt | B16: 2 | C16: 1200 | G16: =IF(--ISNUMBER(SEARCH(tev.lista,A16)),MAX($G$1:G15)+1,"") -> 15 | H16: =IFERROR(INDEX($A$2:$A$298,MATCH(ROWS($G$2:G16),$G$2:$G$298,0)),"") -> Bababolt
A17: Bádogos | B17: 5 | C17: 4200 | G17: =IF(--ISNUMBER(SEARCH(tev.lista,A17)),MAX($G$1:G16)+1,"") -> 16 | H17: =IFERROR(INDEX($A$2:$A$298,MATCH(ROWS($G$2:G17),$G$2:$G$298,0)),"") -> Bádogos
A18: Barkács-műszaki áru kereskedelem (faáruk nélkül) | B18: 2 | C18: 1200 | G18: =IF(--ISNUMBER(SEARCH(tev.lista,A18)),MAX($G$1:G17)+1,"") -> 17 | H18: =IFERROR(INDEX($A$2:$A$298,MATCH(ROWS($G$2:G18),$G$2:$G$298,0)),"") -> Barkács-műszaki áru kereskedelem (faáruk nélkül)
A19: Barkácsgépek gyártása | B19: 3 | C19: 2400 | G19: =IF(--ISNUMBER(SEARCH(tev.lista,A19)),MAX($G$1:G18)+1,"") -> 18 | H19: =IFERROR(INDEX($A$2:$A$298,MATCH(ROWS($G$2:G19),$G$2:$G$298,0)),"") -> Barkácsgépek gyártása
A20: Baromfi-feldolgozás | B20: 3 | C20: 2400 | G20: =IF(--ISNUMBER(SEARCH(tev.lista,A20)),MAX($G$1:G19)+1,"") -> 19 | H20: =IFERROR(INDEX($A$2:$A$298,MATCH(ROWS($G$2:G20),$G$2:$G$298,0)),"") -> Baromfi-feldolgozás
A21: Biztonságtechnikai berendezések gyártása | B21: 3 | C21: 2400 | G21: =IF(--ISNUMBER(SEARCH(tev.lista,A21)),MAX($G$1:G20)+1,"") -> 20 | H21: =IFERROR(INDEX($A$2:$A$298,MATCH(ROWS($G$2:G21),$G$2:$G$298,0)),"") -> Biztonságtechnikai berendezések gyártása
A22: Biztonságtechnikai berendezések kereskedelme | B22: 2 | C22: 1200 | G22: =IF(--ISNUMBER(SEARCH(tev.lista,A22)),MAX($G$1:G21)+1,"") -> 21 | H22: =IFERROR(INDEX($A$2:$A$298,MATCH(ROWS($G$2:G22),$G$2:$G$298,0)),"") -> Biztonságtechnikai berendezések kereskedelme
A23: Borfeldolgozás, pezsgőgyártás, palackozás | B23: 3 | C23: 2400 | G23: =IF(--ISNUMBER(SEARCH(tev.lista,A23)),MAX($G$1:G22)+1,"") -> 22 | H23: =IFERROR(INDEX($A$2:$A$298,MATCH(ROWS($G$2:G23),$G$2:$G$298,0)),"") -> Borfeldolgozás, pezsgőgyártás, palackozás
A24: Borozó, söröző, italbolt, büfé, bisztró, kávézó, eszpresszó | B24: 3 | C24: 1800 | G24: =IF(--ISNUMBER(SEARCH(tev.lista,A24)),MAX($G$1:G23)+1,"") -> 23 | H24: =IFERROR(INDEX($A$2:$A$298,MATCH(ROWS($G$2:G24),$G$2:$G$298,0)),"") -> Borozó, söröző, italbolt, büfé, bisztró, kávézó, eszpresszó
A25: Bőr konfekcionált termékek javítása | B25: 4 | C25: 1800 | G25: =IF(--ISNUMBER(SEARCH(tev.lista,A25)),MAX($G$1:G24)+1,"") -> 24 | H25: =IFERROR(INDEX($A$2:$A$298,MATCH(ROWS($G$2:G25),$G$2:$G$298,0)),"") -> Bőr konfekcionált termékek javítása
A26: Bőr, bőrdíszmű kereskedelem | B26: 2 | C26: 1200 | G26: =IF(--ISNUMBER(SEARCH(tev.lista,A26)),MAX($G$1:G25)+1,"") -> 25 | H26: =IFERROR(INDEX($A$2:$A$298,MATCH(ROWS($G$2:G26),$G$2:$G$298,0)),"") -> Bőr, bőrdíszmű kereskedelem
A27: Bőrkikészítés, bőrtermékek gyártása | B27: 3 | C27: 2400 | G27: =IF(--ISNUMBER(SEARCH(tev.lista,A27)),MAX($G$1:G26)+1,"") -> 26 | H27: =IFERROR(INDEX($A$2:$A$298,MATCH(ROWS($G$2:G27),$G$2:$G$298,0)),"") -> Bőrkikészítés, bőrtermékek gyártása
A28: Bőrruházat gyártása | B28: 3 | C28: 2400 | G28: =IF(--ISNUMBER(SEARCH(tev.lista,A28)),MAX($G$1:G27)+1,"") -> 27 | H28: =IFERROR(INDEX($A$2:$A$298,MATCH(ROWS($G$2:G28),$G$2:$G$298,0)),"") -> Bőrruházat gyártása
A29: Bőrruházati kereskedelem | B29: 2 | C29: 1200 | G29: =IF(--ISNUMBER(SEARCH(tev.lista,A29)),MAX($G$1:G28)+1,"") -> 28 | H29: =IFERROR(INDEX($A$2:$A$298,MATCH(ROWS($G$2:G29),$G$2:$G$298,0)),"") -> Bőrruházati kereskedelem
A30: Bútor (fa alapanyagú, illetve kárpitozott) kereskedelem | B30: 2 | C30: 1200 | G30: =IF(--ISNUMBER(SEARCH(tev.lista,A30)),MAX($G$1:G29)+1,"") -> 29 | H30: =IFERROR(INDEX($A$2:$A$298,MATCH(ROWS($G$2:G30),$G$2:$G$298,0)),"") -> Bútor (fa alapanyagú, illetve kárpitozott) kereskedelem
A31: Bútorgyártás, egyéb feldolgozóipari termékek gyártása | B31: 3 | C31: 2400 | G31: =IF(--ISNUMBER(SEARCH(tev.lista,A31)),MAX($G$1:G30)+1,"") -> 30 | H31: =IFERROR(INDEX($A$2:$A$298,MATCH(ROWS($G$2:G31),$G$2:$G$298,0)),"") -> Bútorgyártás, egyéb feldolgozóipari termékek gyártása
A32: Bútorjavítás (fa anyagok felhasználásával) | B32: 4 | C32: 2400 | G32: =IF(--ISNUMBER(SEARCH(tev.lista,A32)),MAX($G$1:G31)+1,"") -> 31 | H32: =IFERROR(INDEX($A$2:$A$298,MATCH(ROWS($G$2:G32),$G$2:$G$298,0)),"") -> Bútorjavítás (fa anyagok felhasználásával)
A33: Bútorkereskedelem | B33: 2 | C33: 1200 | G33: =IF(--ISNUMBER(SEARCH(tev.lista,A33)),MAX($G$1:G32)+1,"") -> 32 | H33: =IFERROR(INDEX($A$2:$A$298,MATCH(ROWS($G$2:G33),$G$2:$G$298,0)),"") -> Bútorkereskedelem
A34: Camping | B34: 3 | C34: 1800 | G34: =IF(--ISNUMBER(SEARCH(tev.lista,A34)),MAX($G$1:G33)+1,"") -> 33 | H34: =IFERROR(INDEX($A$2:$A$298,MATCH(ROWS($G$2:G34),$G$2:$G$298,0)),"") -> Camping
A35: Címfestő, vésnök | B35: 4 | C35: 1800 | G35: =IF(--ISNUMBER(SEARCH(tev.lista,A35)),MAX($G$1:G34)+1,"") -> 34 | H35: =IFERROR(INDEX($A$2:$A$298,MATCH(ROWS($G$2:G35),$G$2:$G$298,0)),"") -> Címfestő, vésnök
A36: Cipőkereskedelem | B36: 2 | C36: 1200 | G36: =IF(--ISNUMBER(SEARCH(tev.lista,A36)),MAX($G$1:G35)+1,"") -> 35 | H36: =IFERROR(INDEX($A$2:$A$298,MATCH(ROWS($G$2:G36),$G$2:$G$298,0)),"") -> Cipőkereskedelem
A37: Cipőjavítás | B37: 4 | C37: 1800 | G37: =IF(--ISNUMBER(SEARCH(tev.lista,A37)),MAX($G$1:G36)+1,"") -> 36 | H37: =IFERROR(INDEX($A$2:$A$298,MATCH(ROWS($G$2:G37),$G$2:$G$298,0)),"") -> Cipőjavítás
A38: Cukorgyártás | B38: 3 | C38: 2400 | G38: =IF(--ISNUMBER(SEARCH(tev.lista,A38)),MAX($G$1:G37)+1,"") -> 37 | H38: =IFERROR(INDEX($A$2:$A$298,MATCH(ROWS($G$2:G38),$G$2:$G$298,0)),"") -> Cukorgyártás
A39: Cukrászda | B39: 3 | C39: 1800 | G39: =IF(--ISNUMBER(SEARCH(tev.lista,A39)),MAX($G$1:G38)+1,"") -> 38 | H39: =IFERROR(INDEX($A$2:$A$298,MATCH(ROWS($G$2:G39),$G$2:$G$298,0)),"") -> Cukrászda
A40: Csomagoló- és tároló fatermékek gyártása | B40: 4 | C40: 2400 | G40: =IF(--ISNUMBER(SEARCH(tev.lista,A40)),MAX($G$1:G39)+1,"") -> 39 | H40: =IFERROR(INDEX($A$2:$A$298,MATCH(ROWS($G$2:G40),$G$2:$G$298,0)),"") -> Csomagoló- és tároló fatermékek gyártása
A41: Csőgyártás | B41: 4 | C41: 2400 | G41: =IF(--ISNUMBER(SEARCH(tev.lista,A41)),MAX($G$1:G40)+1,"") -> 40 | H41: =IFERROR(INDEX($A$2:$A$298,MATCH(ROWS($G$2:G41),$G$2:$G$298,0)),"") -> Csőgyártás
A42: Dekoratőr | B42: 4 | C42: 1800 | G42: =IF(--ISNUMBER(SEARCH(tev.lista,A42)),MAX($G$1:G41)+1,"") -> 41 | H42: =IFERROR(INDEX($A$2:$A$298,MATCH(ROWS($G$2:G42),$G$2:$G$298,0)),"") -> Dekoratőr
A43: Delicatesse, édesség kereskedés | B43: 2 | C43: 1200 | G43: =IF(--ISNUMBER(SEARCH(tev.lista,A43)),MAX($G$1:G42)+1,"") -> 42 | H43: =IFERROR(INDEX($A$2:$A$298,MATCH(ROWS($G$2:G43),$G$2:$G$298,0)),"") -> Delicatesse, édesség kereskedés
A44: Diákétkeztetés | B44: 4 | C44: 1800 | G44: =IF(--ISNUMBER(SEARCH(tev.lista,A44)),MAX($G$1:G43)+1,"") -> 43 | H44: =IFERROR(INDEX($A$2:$A$298,MATCH(ROWS($G$2:G44),$G$2:$G$298,0)),"") -> Diákétkeztetés
A45: Dísz- és ajándéktárgyak gyártása | B45: 3 | C45: 2400 | G45: =IF(--ISNUMBER(SEARCH(tev.lista,A45)),MAX($G$1:G44)+1,"") -> 44 | H45: =IFERROR(INDEX($A$2:$A$298,MATCH(ROWS($G$2:G45),$G$2:$G$298,0)),"") -> Dísz- és ajándéktárgyak gyártása
A46: Divatáru kereskedés (butik) | B46: 2 | C46: 1200 | G46: =IF(--ISNUMBER(SEARCH(tev.lista,A46)),MAX($G$1:G45)+1,"") -> 45 | H46: =IFERROR(INDEX($A$2:$A$298,MATCH(ROWS($G$2:G46),$G$2:$G$298,0)),"") -> Divatáru kereskedés (butik)
A47: Dohány, ajándék, bizsu, hírlap kereskedés | B47: 2 | C47: 1200 | G47: =IF(--ISNUMBER(SEARCH(tev.lista,A47)),MAX($G$1:G46)+1,"") -> 46 | H47: =IFERROR(INDEX($A$2:$A$298,MATCH(ROWS($G$2:G47),$G$2:$G$298,0)),"") -> Dohány, ajándék, bizsu, hírlap kereskedés
A48: Édesipari termékek gyártása | B48: 3 | C48: 2400 | G48: =IF(--ISNUMBER(SEARCH(tev.lista,A48)),MAX($G$1:G47)+1,"") -> 47 | H48: =IFERROR(INDEX($A$2:$A$298,MATCH(ROWS($G$2:G48),$G$2:$G$298,0)),"") -> Édesipari termékek gyártása
A49: Elektromos és elektronikus alkatrészek kereskedelme | B49: 2 | C49: 1200 | G49: =IF(--ISNUMBER(SEARCH(tev.lista,A49)),MAX($G$1:G48)+1,"") -> 48 | H49: =IFERROR(INDEX($A$2:$A$298,MATCH(ROWS($G$2:G49),$G$2:$G$298,0)),"") -> Elektromos és elektronikus alkatrészek kereskedelme
A50: Élelmiszer nagykereskedelem | B50: 2 | C50: 1200 | G50: =IF(--ISNUMBER(SEARCH(tev.lista,A50)),MAX($G$1:G49)+1,"") -> 49 | H50: =IFERROR(INDEX($A$2:$A$298,MATCH(ROWS($G$2:G50),$G$2:$G$298,0)),"") -> Élelmiszer nagykereskedelem
A51: Élelmiszer, ital, dohányáru nagykereskedelem | B51: 2 | C51: 1200 | G51: =IF(--ISNUMBER(SEARCH(tev.lista,A51)),MAX($G$1:G50)+1,"") -> 50 | H51: =IFERROR(INDEX($A$2:$A$298,MATCH(ROWS($G$2:G51),$G$2:$G$298,0)),"") -> Élelmiszer, ital, dohányáru nagykereskedelem
A52: Élelmiszeripari gépgyártás | B52: 3 | C52: 2400 | G52: =IF(--ISNUMBER(SEARCH(tev.lista,A52)),MAX($G$1:G51)+1,"") -> 51 | H52: =IFERROR(INDEX($A$2:$A$298,MATCH(ROWS($G$2:G52),$G$2:$G$298,0)),"") -> Élelmiszeripari gépgyártás
A53: Építési és épületgépészeti szerelőipar | B53: 5 | C53: 4200 | G53: =IF(--ISNUMBER(SEARCH(tev.lista,A53)),MAX($G$1:G52)+1,"") -> 52 | H53: =IFERROR(INDEX($A$2:$A$298,MATCH(ROWS($G$2:G53),$G$2:$G$298,0)),"") -> Építési és épületgépészeti szerelőipar
A54: Építőipar | B54: 5 | C54: 4200 | G54: =IF(--ISNUMBER(SEARCH(tev.lista,A54)),MAX($G$1:G53)+1,"") -> 53 | H54: =IFERROR(INDEX($A$2:$A$298,MATCH(ROWS($G$2:G54),$G$2:$G$298,0)),"") -> Építőipar
A55: Építőipari gépek, berendezések kölcsönzése (kivéve daru) | B55: 2 | C55: 1800 | G55: =IF(--ISNUMBER(SEARCH(tev.lista,A55)),MAX($G$1:G54)+1,"") -> 54 | H55: =IFERROR(INDEX($A$2:$A$298,MATCH(ROWS($G$2:G55),$G$2:$G$298,0)),"") -> Építőipari gépek, berendezések kölcsönzése (kivéve daru)
A56: Építőipari vas- és fémszerkezetek gyártása | B56: 4 | C56: 2400 | G56: =IF(--ISNUMBER(SEARCH(tev.lista,A56)),MAX($G$1:G55)+1,"") -> 55 | H56: =IFERROR(INDEX($A$2:$A$298,MATCH(ROWS($G$2:G56),$G$2:$G$298,0)),"") -> Építőipari vas- és fémszerkezetek gyártása
A57: Épület-, illetve gépjármű fóliázás | B57: 5 | C57: 4200 | G57: =IF(--ISNUMBER(SEARCH(tev.lista,A57)),MAX($G$1:G56)+1,"") -> 56 | H57: =IFERROR(INDEX($A$2:$A$298,MATCH(ROWS($G$2:G57),$G$2:$G$298,0)),"") -> Épület-, illetve gépjármű fóliázás
A58: Épületács- és épületasztalosipari termékek gyártása | B58: 4 | C58: 2400 | G58: =IF(--ISNUMBER(SEARCH(tev.lista,A58)),MAX($G$1:G57)+1,"") -> 57 | H58: =IFERROR(INDEX($A$2:$A$298,MATCH(ROWS($G$2:G58),$G$2:$G$298,0)),"") -> Épületács- és épületasztalosipari termékek gyártása
A59: Épületasztalos | B59: 5 | C59: 4200 | G59: =IF(--ISNUMBER(SEARCH(tev.lista,A59)),MAX($G$1:G58)+1,"") -> 58 | H59: =IFERROR(INDEX($A$2:$A$298,MATCH(ROWS($G$2:G59),$G$2:$G$298,0)),"") -> Épületasztalos
A60: Épülettisztítás (takarítás, ablaktisztítás) | B60: 4 | C60: 1800 | G60: =IF(--ISNUMBER(SEARCH(tev.lista,A60)),MAX($G$1:G59)+1,"") -> 59 | H60: =IFERROR(INDEX($A$2:$A$298,MATCH(ROWS($G$2:G60),$G$2:$G$298,0)),"") -> Épülettisztítás (takarítás, ablaktisztítás)
A61: Épületüzemeltetés (kivéve társasház, lakásszövetkezet) | B61: 4 | C61: 1800 | G61: =IF(--ISNUMBER(SEARCH(tev.lista,A61)),MAX($G$1:G60)+1,"") -> 60 | H61: =IFERROR(INDEX($A$2:$A$298,MATCH(ROWS($G$2:G61),$G$2:$G$298,0)),"") -> Épületüzemeltetés (kivéve társasház, lakásszövetkezet)
A62: Erőművi és ipari kazángyártás | B62: 4 | C62: 2400 | G62: =IF(--ISNUMBER(SEARCH(tev.lista,A62)),MAX($G$1:G61)+1,"") -> 61 | H62: =IFERROR(INDEX($A$2:$A$298,MATCH(ROWS($G$2:G62),$G$2:$G$298,0)),"") -> Erőművi és ipari kazángyártás
A63: Esküvőiruha-kölcsönző | B63: 2 | C63: 1800 | G63: =IF(--ISNUMBER(SEARCH(tev.lista,A63)),MAX($G$1:G62)+1,"") -> 62 | H63: =IFERROR(INDEX($A$2:$A$298,MATCH(ROWS($G$2:G63),$G$2:$G$298,0)),"") -> Esküvőiruha-kölcsönző
A64: Étrendkiegészítő készítmények forgalmazása | B64: 2 | C64: 1200 | G64: =IF(--ISNUMBER(SEARCH(tev.lista,A64)),MAX($G$1:G63)+1,"") -> 63 | H64: =IFERROR(INDEX($A$2:$A$298,MATCH(ROWS($G$2:G64),$G$2:$G$298,0)),"") -> Étrendkiegészítő készítmények forgalmazása
A65: Éttermi vendéglátás | B65: 3 | C65: 1800 | G65: =IF(--ISNUMBER(SEARCH(tev.lista,A65)),MAX($G$1:G64)+1,"") -> 64 | H65: =IFERROR(INDEX($A$2:$A$298,MATCH(ROWS($G$2:G65),$G$2:$G$298,0)),"") -> Éttermi vendéglátás
A66: Faanyag- és barkácsáru kereskedelem | B66: 2 | C66: 1200 | G66: =IF(--ISNUMBER(SEARCH(tev.lista,A66)),MAX($G$1:G65)+1,"") -> 65 | H66: =IFERROR(INDEX($A$2:$A$298,MATCH(ROWS($G$2:G66),$G$2:$G$298,0)),"") -> Faanyag- és barkácsáru kereskedelem
A67: Fafeldolgozás | B67: 4 | C67: 1200 | G67: =IF(--ISNUMBER(SEARCH(tev.lista,A67)),MAX($G$1:G66)+1,"") -> 66 | H67: =IFERROR(INDEX($A$2:$A$298,MATCH(ROWS($G$2:G67),$G$2:$G$298,0)),"") -> Fafeldolgozás
A68: Falusi turizmus - lovaglás | B68: 3 | C68: 1800 | G68: =IF(--ISNUMBER(SEARCH(tev.lista,A68)),MAX($G$1:G67)+1,"") -> 67 | H68: =IFERROR(INDEX($A$2:$A$298,MATCH(ROWS($G$2:G68),$G$2:$G$298,0)),"") -> Falusi turizmus - lovaglás
A69: Faragott kőtermékek előállítása | B69: 3 | C69: 2400 | G69: =IF(--ISNUMBER(SEARCH(tev.lista,A69)),MAX($G$1:G68)+1,"") -> 68 | H69: =IFERROR(INDEX($A$2:$A$298,MATCH(ROWS($G$2:G69),$G$2:$G$298,0)),"") -> Faragott kőtermékek előállítása
A70: Fatömegcikk gyártása | B70: 4 | C70: 2400 | G70: =IF(--ISNUMBER(SEARCH(tev.lista,A70)),MAX($G$1:G69)+1,"") -> 69 | H70: =IFERROR(INDEX($A$2:$A$298,MATCH(ROWS($G$2:G70),$G$2:$G$298,0)),"") -> Fatömegcikk gyártása
A71: Felvonó szerelés és javítás | B71: 5 | C71: 4200 | G71: =IF(--ISNUMBER(SEARCH(tev.lista,A71)),MAX($G$1:G70)+1,"") -> 70 | H71: =IFERROR(INDEX($A$2:$A$298,MATCH(ROWS($G$2:G71),$G$2:$G$298,0)),"") -> Felvonó szerelés és javítás
A72: Fémfeldolgozási termékek gyártása | B72: 4 | C72: 2400 | G72: =IF(--ISNUMBER(SEARCH(tev.lista,A72)),MAX($G$1:G71)+1,"") -> 71 | H72: =IFERROR(INDEX($A$2:$A$298,MATCH(ROWS($G$2:G72),$G$2:$G$298,0)),"") -> Fémfeldolgozási termékek gyártása
A73: Fémmegmunkálás és felületkezelés | B73: 4 | C73: 1800 | G73: =IF(--ISNUMBER(SEARCH(tev.lista,A73)),MAX($G$1:G72)+1,"") -> 72 | H73: =IFERROR(INDEX($A$2:$A$298,MATCH(ROWS($G$2:G73),$G$2:$G$298,0)),"") -> Fémmegmunkálás és felületkezelés
A74: Fémszerkezetgyártás (hegesztés) | B74: 4 | C74: 1800 | G74: =IF(--ISNUMBER(SEARCH(tev.lista,A74)),MAX($G$1:G73)+1,"") -> 73 | H74: =IFERROR(INDEX($A$2:$A$298,MATCH(ROWS($G$2:G74),$G$2:$G$298,0)),"") -> Fémszerkezetgyártás (hegesztés)
A75: Fémtartály, szállítótartály gyártása (védőgázas hegesztés) | B75: 4 | C75: 1800 | G75: =IF(--ISNUMBER(SEARCH(tev.lista,A75)),MAX($G$1:G74)+1,"") -> 74 | H75: =IFERROR(INDEX($A$2:$A$298,MATCH(ROWS($G$2:G75),$G$2:$G$298,0)),"") -> Fémtartály, szállítótartály gyártása (védőgázas hegesztés)
A76: Fényforrás- és világítóberendezés-gyártás | B76: 3 | C76: 2400 | G76: =IF(--ISNUMBER(SEARCH(tev.lista,A76)),MAX($G$1:G75)+1,"") -> 75 | H76: =IFERROR(INDEX($A$2:$A$298,MATCH(ROWS($G$2:G76),$G$2:$G$298,0)),"") -> Fényforrás- és világítóberendezés-gyártás
A77: Fényképészet, videofelvétel készítés | B77: 4 | C77: 1800 | G77: =IF(--ISNUMBER(SEARCH(tev.lista,A77)),MAX($G$1:G76)+1,"") -> 76 | H77: =IFERROR(INDEX($A$2:$A$298,MATCH(ROWS($G$2:G77),$G$2:$G$298,0)),"") -> Fényképészet, videofelvétel készítés
A78: Fénymásolás, sokszorosítás, bélyegzőkészítés | B78: 4 | C78: 1800 | G78: =IF(--ISNUMBER(SEARCH(tev.lista,A78)),MAX($G$1:G77)+1,"") -> 77 | H78: =IFERROR(INDEX($A$2:$A$298,MATCH(ROWS($G$2:G78),$G$2:$G$298,0)),"") -> Fénymásolás, sokszorosítás, bélyegzőkészítés
A79: Festék, lakk kereskedelem | B79: 4 | C79: 1200 | G79: =IF(--ISNUMBER(SEARCH(tev.lista,A79)),MAX($G$1:G78)+1,"") -> 78 | H79: =IFERROR(INDEX($A$2:$A$298,MATCH(ROWS($G$2:G79),$G$2:$G$298,0)),"") -> Festék, lakk kereskedelem
A80: Festés, mázolás, tapétázás | B80: 5 | C80: 4200 | G80: =IF(--ISNUMBER(SEARCH(tev.lista,A80)),MAX($G$1:G79)+1,"") -> 79 | H80: =IFERROR(INDEX($A$2:$A$298,MATCH(ROWS($G$2:G80),$G$2:$G$298,0)),"") -> Festés, mázolás, tapétázás
A81: Filmvetítés (mozi) | B81: 1 | C81: 600 | G81: =IF(--ISNUMBER(SEARCH(tev.lista,A81)),MAX($G$1:G80)+1,"") -> 80 | H81: =IFERROR(INDEX($A$2:$A$298,MATCH(ROWS($G$2:G81),$G$2:$G$298,0)),"") -> Filmvetítés (mozi)
A82: Fitnesz center | B82: 1 | C82: 600 | G82: =IF(--ISNUMBER(SEARCH(tev.lista,A82)),MAX($G$1:G81)+1,"") -> 81 | H82: =IFERROR(INDEX($A$2:$A$298,MATCH(ROWS($G$2:G82),$G$2:$G$298,0)),"") -> Fitnesz center
A83: Fodrászat | B83: 4 | C83: 1800 | G83: =IF(--ISNUMBER(SEARCH(tev.lista,A83)),MAX($G$1:G82)+1,"") -> 82 | H83: =IFERROR(INDEX($A$2:$A$298,MATCH(ROWS($G$2:G83),$G$2:$G$298,0)),"") -> Fodrászat
A84: Fotócikkek kereskedelme | B84: 2 | C84: 1200 | G84: =IF(--ISNUMBER(SEARCH(tev.lista,A84)),MAX($G$1:G83)+1,"") -> 83 | H84: =IFERROR(INDEX($A$2:$A$298,MATCH(ROWS($G$2:G84),$G$2:$G$298,0)),"") -> Fotócikkek kereskedelme
A85: Fűrészárugyártás | B85: 4 | C85: 2400 | G85: =IF(--ISNUMBER(SEARCH(tev.lista,A85)),MAX($G$1:G84)+1,"") -> 84 | H85: =IFERROR(INDEX($A$2:$A$298,MATCH(ROWS($G$2:G85),$G$2:$G$298,0)),"") -> Fűrészárugyártás
A86: Fűszerpaprika őrlése vagy egyéb feldolgozása | B86: 3 | C86: 2400 | G86: =IF(--ISNUMBER(SEARCH(tev.lista,A86)),MAX($G$1:G85)+1,"") -> 85 | H86: =IFERROR(INDEX($A$2:$A$298,MATCH(ROWS($G$2:G86),$G$2:$G$298,0)),"") -> Fűszerpaprika őrlése vagy egyéb feldolgozása
A87: Fűtő-hűtő berendezések szerelése | B87: 5 | C87: 4200 | G87: =IF(--ISNUMBER(SEARCH(tev.lista,A87)),MAX($G$1:G86)+1,"") -> 86 | H87: =IFERROR(INDEX($A$2:$A$298,MATCH(ROWS($G$2:G87),$G$2:$G$298,0)),"") -> Fűtő-hűtő berendezések szerelése
A88: Gázcseretelep | B88: 4 | C88: 1800 | G88: =IF(--ISNUMBER(SEARCH(tev.lista,A88)),MAX($G$1:G87)+1,"") -> 87 | H88: =IFERROR(INDEX($A$2:$A$298,MATCH(ROWS($G$2:G88),$G$2:$G$298,0)),"") -> Gázcseretelep
A89: Gázkészülékek javítása | B89: 4 | C89: 1800 | G89: =IF(--ISNUMBER(SEARCH(tev.lista,A89)),MAX($G$1:G88)+1,"") -> 88 | H89: =IFERROR(INDEX($A$2:$A$298,MATCH(ROWS($G$2:G89),$G$2:$G$298,0)),"") -> Gázkészülékek javítása
A90: Gáz-, víz-, villanyszerelés | B90: 5 | C90: 4200 | G90: =IF(--ISNUMBER(SEARCH(tev.lista,A90)),MAX($G$1:G89)+1,"") -> 89 | H90: =IFERROR(INDEX($A$2:$A$298,MATCH(ROWS($G$2:G90),$G$2:$G$298,0)),"") -> Gáz-, víz-, villanyszerelés
A91: Gépállomás | B91: 4 | C91: 1800 | G91: =IF(--ISNUMBER(SEARCH(tev.lista,A91)),MAX($G$1:G90)+1,"") -> 90 | H91: =IFERROR(INDEX($A$2:$A$298,MATCH(ROWS($G$2:G91),$G$2:$G$298,0)),"") -> Gépállomás
A92: Gépek, gépi berendezések kölcsönzése | B92: 2 | C92: 1800 | G92: =IF(--ISNUMBER(SEARCH(tev.lista,A92)),MAX($G$1:G91)+1,"") -> 91 | H92: =IFERROR(INDEX($A$2:$A$298,MATCH(ROWS($G$2:G92),$G$2:$G$298,0)),"") -> Gépek, gépi berendezések kölcsönzése
A93: Gépek, gépi berendezések gyártása | B93: 3 | C93: 2400 | G93: =IF(--ISNUMBER(SEARCH(tev.lista,A93)),MAX($G$1:G92)+1,"") -> 92 | H93: =IFERROR(INDEX($A$2:$A$298,MATCH(ROWS($G$2:G93),$G$2:$G$298,0)),"") -> Gépek, gépi berendezések gyártása
A94: Gépészeti berendezések kereskedelme | B94: 2 | C94: 1200 | G94: =IF(--ISNUMBER(SEARCH(tev.lista,A94)),MAX($G$1:G93)+1,"") -> 93 | H94: =IFERROR(INDEX($A$2:$A$298,MATCH(ROWS($G$2:G94),$G$2:$G$298,0)),"") -> Gépészeti berendezések kereskedelme
A95: Gépjármű-felszerelési cikk kereskedelem | B95: 4 | C95: 1200 | G95: =IF(--ISNUMBER(SEARCH(tev.lista,A95)),MAX($G$1:G94)+1,"") -> 94 | H95: =IFERROR(INDEX($A$2:$A$298,MATCH(ROWS($G$2:G95),$G$2:$G$298,0)),"") -> Gépjármű-felszerelési cikk kereskedelem
A96: Gépjárműalkatrész kereskedelem | B96: 4 | C96: 1200 | G96: =IF(--ISNUMBER(SEARCH(tev.lista,A96)),MAX($G$1:G95)+1,"") -> 95 | H96: =IFERROR(INDEX($A$2:$A$298,MATCH(ROWS($G$2:G96),$G$2:$G$298,0)),"") -> Gépjárműalkatrész kereskedelem
A97: Gumitermékek gyártása | B97: 4 | C97: 2400 | G97: =IF(--ISNUMBER(SEARCH(tev.lista,A97)),MAX($G$1:G96)+1,"") -> 96 | H97: =IFERROR(INDEX($A$2:$A$298,MATCH(ROWS($G$2:G97),$G$2:$G$298,0)),"") -> Gumitermékek gyártása
A98: Gyapjúfonás, szövés | B98: 3 | C98: 2400 | G98: =IF(--ISNUMBER(SEARCH(tev.lista,A98)),MAX($G$1:G97)+1,"") -> 97 | H98: =IFERROR(INDEX($A$2:$A$298,MATCH(ROWS($G$2:G98),$G$2:$G$298,0)),"") -> Gyapjúfonás, szövés
A99: Gyógyászati segédeszközök gyártása | B99: 3 | C99: 2400 | G99: =IF(--ISNUMBER(SEARCH(tev.lista,A99)),MAX($G$1:G98)+1,"") -> 98 | H99: =IFERROR(INDEX($A$2:$A$298,MATCH(ROWS($G$2:G99),$G$2:$G$298,0)),"") -> Gyógyászati segédeszközök gyártása
A100: Gyógyászati segédeszközök kereskedelme | B100: 2 | C100: 1200 | G100: =IF(--ISNUMBER(SEARCH(tev.lista,A100)),MAX($G$1:G99)+1,"") -> 99 | H100: =IFERROR(INDEX($A$2:$A$298,MATCH(ROWS($G$2:G100),$G$2:$G$298,0)),"") -> Gyógyászati segédeszközök kereskedelme
A101: Gyógynövény kereskedelem | B101: 2 | C101: 1200 | G101: =IF(--ISNUMBER(SEARCH(tev.lista,A101)),MAX($G$1:G100)+1,"") -> 100 | H101: =IFERROR(INDEX($A$2:$A$298,MATCH(ROWS($G$2:G101),$G$2:$G$298,0)),"") -> Gyógynövény kereskedelem
A102: Gyógynövények szárítása, feldolgozása és kiszerelése | B102: 3 | C102: 2400 | G102: =IF(--ISNUMBER(SEARCH(tev.lista,A102)),MAX($G$1:G101)+1,"") -> 101 | H102: =IFERROR(INDEX($A$2:$A$298,MATCH(ROWS($G$2:G102),$G$2:$G$298,0)),"") -> Gyógynövények szárítása, feldolgozása és kiszerelése
A103: Gyümölcs- és zöldségfeldolgozás | B103: 3 | C103: 2400 | G103: =IF(--ISNUMBER(SEARCH(tev.lista,A103)),MAX($G$1:G102)+1,"") -> 102 | H103: =IFERROR(INDEX($A$2:$A$298,MATCH(ROWS($G$2:G103),$G$2:$G$298,0)),"") -> Gyümölcs- és zöldségfeldolgozás
A104: Hangfelvétel készítés (hangstúdió) | B104: 4 | C104: 1800 | G104: =IF(--ISNUMBER(SEARCH(tev.lista,A104)),MAX($G$1:G103)+1,"") -> 103 | H104: =IFERROR(INDEX($A$2:$A$298,MATCH(ROWS($G$2:G104),$G$2:$G$298,0)),"") -> Hangfelvétel készítés (hangstúdió)
A105: Hangszerkereskedés | B105: 2 | C105: 1200 | G105: =IF(--ISNUMBER(SEARCH(tev.lista,A105)),MAX($G$1:G104)+1,"") -> 104 | H105: =IFERROR(INDEX($A$2:$A$298,MATCH(ROWS($G$2:G105),$G$2:$G$298,0)),"") -> Hangszerkereskedés
A106: Hangszergyártás | B106: 3 | C106: 2400 | G106: =IF(--ISNUMBER(SEARCH(tev.lista,A106)),MAX($G$1:G105)+1,"") -> 105 | H106: =IFERROR(INDEX($A$2:$A$298,MATCH(ROWS($G$2:G106),$G$2:$G$298,0)),"") -> Hangszergyártás
A107: Hangszerjavítás | B107: 4 | C107: 1800 | G107: =IF(--ISNUMBER(SEARCH(tev.lista,A107)),MAX($G$1:G106)+1,"") -> 106 | H107: =IFERROR(INDEX($A$2:$A$298,MATCH(ROWS($G$2:G107),$G$2:$G$298,0)),"") -> Hangszerjavítás
A108: Hangtechnikai kis- és nagykereskedelem | B108: 2 | C108: 1200 | G108: =IF(--ISNUMBER(SEARCH(tev.lista,A108)),MAX($G$1:G107)+1,"") -> 107 | H108: =IFERROR(INDEX($A$2:$A$298,MATCH(ROWS($G$2:G108),$G$2:$G$298,0)),"") -> Hangtechnikai kis- és nagykereskedelem
A109: Háztartási elektromos készülékek kereskedelme (hűtő, mosógép, bojler) | B109: 2 | C109: 1200 | G109: =IF(--ISNUMBER(SEARCH(tev.lista,A109)),MAX($G$1:G108)+1,"") -> 108 | H109: =IFERROR(INDEX($A$2:$A$298,MATCH(ROWS($G$2:G109),$G$2:$G$298,0)),"") -> Háztartási elektromos készülékek kereskedelme (hűtő, mosógép, bojler)
A110: Háztartási- és egészségügyi papírtermékgyártás | B110: 4 | C110: 2400 | G110: =IF(--ISNUMBER(SEARCH(tev.lista,A110)),MAX($G$1:G109)+1,"") -> 109 | H110: =IFERROR(INDEX($A$2:$A$298,MATCH(ROWS($G$2:G110),$G$2:$G$298,0)),"") -> Háztartási- és egészségügyi papírtermékgyártás
A111: Háztartási fémáru (finomacél áru, edény, étkészlet stb.) kereskedelem | B111: 2 | C111: 1200 | G111: =IF(--ISNUMBER(SEARCH(tev.lista,A111)),MAX($G$1:G110)+1,"") -> 110 | H111: =IFERROR(INDEX($A$2:$A$298,MATCH(ROWS($G$2:G111),$G$2:$G$298,0)),"") -> Háztartási fémáru (finomacél áru, edény, étkészlet stb.) kereskedelem
A112: Háztartási főző-, fűtő- és vízmelegítő készülékek kereskedelme | B112: 2 | C112: 1200 | G112: =IF(--ISNUMBER(SEARCH(tev.lista,A112)),MAX($G$1:G111)+1,"") -> 111 | H112: =IFERROR(INDEX($A$2:$A$298,MATCH(ROWS($G$2:G112),$G$2:$G$298,0)),"") -> Háztartási főző-, fűtő- és vízmelegítő készülékek kereskedelme
A113: Háztartási gépek javítása (hűtő, mosógép, bojler) | B113: 4 | C113: 1800 | G113: =IF(--ISNUMBER(SEARCH(tev.lista,A113)),MAX($G$1:G112)+1,"") -> 112 | H113: =IFERROR(INDEX($A$2:$A$298,MATCH(ROWS($G$2:G113),$G$2:$G$298,0)),"") -> Háztartási gépek javítása (hűtő, mosógép, bojler)
A114: Háztartási készülékek gyártása | B114: 3 | C114: 2400 | G114: =IF(--ISNUMBER(SEARCH(tev.lista,A114)),MAX($G$1:G113)+1,"") -> 113 | H114: =IFERROR(INDEX($A$2:$A$298,MATCH(ROWS($G$2:G114),$G$2:$G$298,0)),"") -> Háztartási készülékek gyártása
A115: Háztartási műanyagáru kereskedelem | B115: 2 | C115: 1200 | G115: =IF(--ISNUMBER(SEARCH(tev.lista,A115)),MAX($G$1:G114)+1,"") -> 114 | H115: =IFERROR(INDEX($A$2:$A$298,MATCH(ROWS($G$2:G115),$G$2:$G$298,0)),"") -> Háztartási műanyagáru kereskedelem
A116: Háztartási vegyiáru kereskedelem | B116: 4 | C116: 1200 | G116: =IF(--ISNUMBER(SEARCH(tev.lista,A116)),MAX($G$1:G115)+1,"") -> 115 | H116: =IFERROR(INDEX($A$2:$A$298,MATCH(ROWS($G$2:G116),$G$2:$G$298,0)),"") -> Háztartási vegyiáru kereskedelem
A117: Hidegburkoló (kerámia padlólap, csempe stb.) | B117: 5 | C117: 4200 | G117: =IF(--ISNUMBER(SEARCH(tev.lista,A117)),MAX($G$1:G116)+1,"") -> 116 | H117: =IFERROR(INDEX($A$2:$A$298,MATCH(ROWS($G$2:G117),$G$2:$G$298,0)),"") -> Hidegburkoló (kerámia padlólap, csempe stb.)
A118: Híradástechnikai berendezések, fotócikkek kölcsönzése | B118: 2 | C118: 1800 | G118: =IF(--ISNUMBER(SEARCH(tev.lista,A118)),MAX($G$1:G117)+1,"") -> 117 | H118: =IFERROR(INDEX($A$2:$A$298,MATCH(ROWS($G$2:G118),$G$2:$G$298,0)),"") -> Híradástechnikai berendezések, fotócikkek kölcsönzése
A119: Híradástechnikai- és elektronikai alkatrészgyártás | B119: 3 | C119: 2400 | G119: =IF(--ISNUMBER(SEARCH(tev.lista,A119)),MAX($G$1:G118)+1,"") -> 118 | H119: =IFERROR(INDEX($A$2:$A$298,MATCH(ROWS($G$2:G119),$G$2:$G$298,0)),"") -> Híradástechnikai- és elektronikai alkatrészgyártás
A120: Hiradástechnikai termékek gyártása | B120: 3 | C120: 2400 | G120: =IF(--ISNUMBER(SEARCH(tev.lista,A120)),MAX($G$1:G119)+1,"") -> 119 | H120: =IFERROR(INDEX($A$2:$A$298,MATCH(ROWS($G$2:G120),$G$2:$G$298,0)),"") -> Hiradástechnikai termékek gyártása
A121: Hirdetési tevékenység | B121: 4 | C121: 1800 | G121: =IF(--ISNUMBER(SEARCH(tev.lista,A121)),MAX($G$1:G120)+1,"") -> 120 | H121: =IFERROR(INDEX($A$2:$A$298,MATCH(ROWS($G$2:G121),$G$2:$G$298,0)),"") -> Hirdetési tevékenység
A122: Hírlapárusítás | B122: 2 | C122: 1800 | G122: =IF(--ISNUMBER(SEARCH(tev.lista,A122)),MAX($G$1:G121)+1,"") -> 121 | H122: =IFERROR(INDEX($A$2:$A$298,MATCH(ROWS($G$2:G122),$G$2:$G$298,0)),"") -> Hírlapárusítás
A123: Hordós vagy tartályos bortárolás | B123: 3 | C123: 2400 | G123: =IF(--ISNUMBER(SEARCH(tev.lista,A123)),MAX($G$1:G122)+1,"") -> 122 | H123: =IFERROR(INDEX($A$2:$A$298,MATCH(ROWS($G$2:G123),$G$2:$G$298,0)),"") -> Hordós vagy tartályos bortárolás
A124: Horgász, vadász szaküzlet (lőfegyverek nélkül) | B124: 2 | C124: 1200 | G124: =IF(--ISNUMBER(SEARCH(tev.lista,A124)),MAX($G$1:G123)+1,"") -> 123 | H124: =IFERROR(INDEX($A$2:$A$298,MATCH(ROWS($G$2:G124),$G$2:$G$298,0)),"") -> Horgász, vadász szaküzlet (lőfegyverek nélkül)
A125: Hús- és halfeldogozás | B125: 3 | C125: 2400 | G125: =IF(--ISNUMBER(SEARCH(tev.lista,A125)),MAX($G$1:G124)+1,"") -> 124 | H125: =IFERROR(INDEX($A$2:$A$298,MATCH(ROWS($G$2:G125),$G$2:$G$298,0)),"") -> Hús- és halfeldogozás
A126: Hús-, hal-, baromfi kereskedelem | B126: 2 | C126: 1200 | G126: =IF(--ISNUMBER(SEARCH(tev.lista,A126)),MAX($G$1:G125)+1,"") -> 125 | H126: =IFERROR(INDEX($A$2:$A$298,MATCH(ROWS($G$2:G126),$G$2:$G$298,0)),"") -> Hús-, hal-, baromfi kereskedelem
A127: Ingóvagyon kölcsönzése | B127: 2 | C127: 1800 | G127: =IF(--ISNUMBER(SEARCH(tev.lista,A127)),MAX($G$1:G126)+1,"") -> 126 | H127: =IFERROR(INDEX($A$2:$A$298,MATCH(ROWS($G$2:G127),$G$2:$G$298,0)),"") -> Ingóvagyon kölcsönzése
A128: Ipari fémtömegcikkek gyártása (forgácsolás) | B128: 4 | C128: 2400 | G128: =IF(--ISNUMBER(SEARCH(tev.lista,A128)),MAX($G$1:G127)+1,"") -> 127 | H128: =IFERROR(INDEX($A$2:$A$298,MATCH(ROWS($G$2:G128),$G$2:$G$298,0)),"") -> Ipari fémtömegcikkek gyártása (forgácsolás)
A129: Ipari híradástechnikai termékek gyártása | B129: 3 | C129: 2400 | G129: =IF(--ISNUMBER(SEARCH(tev.lista,A129)),MAX($G$1:G128)+1,"") -> 128 | H129: =IFERROR(INDEX($A$2:$A$298,MATCH(ROWS($G$2:G129),$G$2:$G$298,0)),"") -> Ipari híradástechnikai termékek gyártása
A130: Iparművészeti jellegű üveg- és porcelán kereskedelem | B130: 2 | C130: 1200 | G130: =IF(--ISNUMBER(SEARCH(tev.lista,A130)),MAX($G$1:G129)+1,"") -> 129 | H130: =IFERROR(INDEX($A$2:$A$298,MATCH(ROWS($G$2:G130),$G$2:$G$298,0)),"") -> Iparművészeti jellegű üveg- és porcelán kereskedelem
A131: Iroda - telephelyen, lakóházban | B131: 1 | C131: 600 | G131: =IF(--ISNUMBER(SEARCH(tev.lista,A131)),MAX($G$1:G130)+1,"") -> 130 | H131: =IFERROR(INDEX($A$2:$A$298,MATCH(ROWS($G$2:G131),$G$2:$G$298,0)),"") -> Iroda - telephelyen, lakóházban
A132: Iroda- és számítógépjavítás és -karbantartás | B132: 3 | C132: 1800 | G132: =IF(--ISNUMBER(SEARCH(tev.lista,A132)),MAX($G$1:G131)+1,"") -> 131 | H132: =IFERROR(INDEX($A$2:$A$298,MATCH(ROWS($G$2:G132),$G$2:$G$298,0)),"") -> Iroda- és számítógépjavítás és -karbantartás
A133: Irodagép- és számítógépgyártás | B133: 3 | C133: 2400 | G133: =IF(--ISNUMBER(SEARCH(tev.lista,A133)),MAX($G$1:G132)+1,"") -> 132 | H133: =IFERROR(INDEX($A$2:$A$298,MATCH(ROWS($G$2:G133),$G$2:$G$298,0)),"") -> Irodagép- és számítógépgyártás
A134: Irodagépek és gépi berendezések, számítástechnikai eszközök kölcsönzése | B134: 2 | C134: 1800 | G134: =IF(--ISNUMBER(SEARCH(tev.lista,A134)),MAX($G$1:G133)+1,"") -> 133 | H134: =IFERROR(INDEX($A$2:$A$298,MATCH(ROWS($G$2:G134),$G$2:$G$298,0)),"") -> Irodagépek és gépi berendezések, számítástechnikai eszközök kölcsönzése
A135: Italkereskedés (szeszesital) | B135: 2 | C135: 1200 | G135: =IF(--ISNUMBER(SEARCH(tev.lista,A135)),MAX($G$1:G134)+1,"") -> 134 | H135: =IFERROR(INDEX($A$2:$A$298,MATCH(ROWS($G$2:G135),$G$2:$G$298,0)),"") -> Italkereskedés (szeszesital)
A136: Italok raktározása, nagykereskedelem, palackozás | B136: 3 | C136: 2400 | G136: =IF(--ISNUMBER(SEARCH(tev.lista,A136)),MAX($G$1:G135)+1,"") -> 135 | H136: =IFERROR(INDEX($A$2:$A$298,MATCH(ROWS($G$2:G136),$G$2:$G$298,0)),"") -> Italok raktározása, nagykereskedelem, palackozás
A137: Járművillamossági készülékek gyártása | B137: 3 | C137: 2400 | G137: =IF(--ISNUMBER(SEARCH(tev.lista,A137)),MAX($G$1:G136)+1,"") -> 136 | H137: =IFERROR(INDEX($A$2:$A$298,MATCH(ROWS($G$2:G137),$G$2:$G$298,0)),"") -> Járművillamossági készülékek gyártása
A138: Játékkereskedés | B138: 2 | C138: 1200 | G138: =IF(--ISNUMBER(SEARCH(tev.lista,A138)),MAX($G$1:G137)+1,"") -> 137 | H138: =IFERROR(INDEX($A$2:$A$298,MATCH(ROWS($G$2:G138),$G$2:$G$298,0)),"") -> Játékkereskedés
A139: Játékgyártás | B139: 3 | C139: 2400 | G139: =IF(--ISNUMBER(SEARCH(tev.lista,A139)),MAX($G$1:G138)+1,"") -> 138 | H139: =IFERROR(INDEX($A$2:$A$298,MATCH(ROWS($G$2:G139),$G$2:$G$298,0)),"") -> Játékgyártás
A140: Szórakoztató-, illetve kulturális tevékenység | B140: 1 | C140: 600 | G140: =IF(--ISNUMBER(SEARCH(tev.lista,A140)),MAX($G$1:G139)+1,"") -> 139 | H140: =IFERROR(INDEX($A$2:$A$298,MATCH(ROWS($G$2:G140),$G$2:$G$298,0)),"") -> Szórakoztató-, illetve kulturális tevékenység
A141: Kaputechnika, egyéb épületgépészeti szerelés | B141: 5 | C141: 4200 | G141: =IF(--ISNUMBER(SEARCH(tev.lista,A141)),MAX($G$1:G140)+1,"") -> 140 | H141: =IFERROR(INDEX($A$2:$A$298,MATCH(ROWS($G$2:G141),$G$2:$G$298,0)),"") -> Kaputechnika, egyéb épületgépészeti szerelés
A142: Kárpitos | B142: 4 | C142: 1800 | G142: =IF(--ISNUMBER(SEARCH(tev.lista,A142)),MAX($G$1:G141)+1,"") -> 141 | H142: =IFERROR(INDEX($A$2:$A$298,MATCH(ROWS($G$2:G142),$G$2:$G$298,0)),"") -> Kárpitos
A143: Kávépörkölés, forgalmazás | B143: 3 | C143: 1200 | G143: =IF(--ISNUMBER(SEARCH(tev.lista,A143)),MAX($G$1:G142)+1,"") -> 142 | H143: =IFERROR(INDEX($A$2:$A$298,MATCH(ROWS($G$2:G143),$G$2:$G$298,0)),"") -> Kávépörkölés, forgalmazás
A144: Képkeretező | B144: 4 | C144: 1800 | G144: =IF(--ISNUMBER(SEARCH(tev.lista,A144)),MAX($G$1:G143)+1,"") -> 143 | H144: =IFERROR(INDEX($A$2:$A$298,MATCH(ROWS($G$2:G144),$G$2:$G$298,0)),"") -> Képkeretező
A145: Képző- és iparművészeti tárgyak kereskedelme | B145: 2 | C145: 1200 | G145: =IF(--ISNUMBER(SEARCH(tev.lista,A145)),MAX($G$1:G144)+1,"") -> 144 | H145: =IFERROR(INDEX($A$2:$A$298,MATCH(ROWS($G$2:G145),$G$2:$G$298,0)),"") -> Képző- és iparművészeti tárgyak kereskedelme
A146: Képzőművészeti tárgyak, festmények kereskedelme | B146: 2 | C146: 1200 | G146: =IF(--ISNUMBER(SEARCH(tev.lista,A146)),MAX($G$1:G145)+1,"") -> 145 | H146: =IFERROR(INDEX($A$2:$A$298,MATCH(ROWS($G$2:G146),$G$2:$G$298,0)),"") -> Képzőművészeti tárgyak, festmények kereskedelme
A147: Kerámiacsempék és -lapok gyártása | B147: 3 | C147: 2400 | G147: =IF(--ISNUMBER(SEARCH(tev.lista,A147)),MAX($G$1:G146)+1,"") -> 146 | H147: =IFERROR(INDEX($A$2:$A$298,MATCH(ROWS($G$2:G147),$G$2:$G$298,0)),"") -> Kerámiacsempék és -lapok gyártása
A148: Kerékpár és -alkatrész kereskedelem | B148: 2 | C148: 1200 | G148: =IF(--ISNUMBER(SEARCH(tev.lista,A148)),MAX($G$1:G147)+1,"") -> 147 | H148: =IFERROR(INDEX($A$2:$A$298,MATCH(ROWS($G$2:G148),$G$2:$G$298,0)),"") -> Kerékpár és -alkatrész kereskedelem
A149: Kerékpár és motorkerékpár gyártása | B149: 3 | C149: 1200 | G149: =IF(--ISNUMBER(SEARCH(tev.lista,A149)),MAX($G$1:G148)+1,"") -> 148 | H149: =IFERROR(INDEX($A$2:$A$298,MATCH(ROWS($G$2:G149),$G$2:$G$298,0)),"") -> Kerékpár és motorkerékpár gyártása
A150: Kert- és parképítés | B150: 5 | C150: 4200 | G150: =IF(--ISNUMBER(SEARCH(tev.lista,A150)),MAX($G$1:G149)+1,"") -> 149 | H150: =IFERROR(INDEX($A$2:$A$298,MATCH(ROWS($G$2:G150),$G$2:$G$298,0)),"") -> Kert- és parképítés
A151: Kézi- és gépszerszámgyártás | B151: 3 | C151: 2400 | G151: =IF(--ISNUMBER(SEARCH(tev.lista,A151)),MAX($G$1:G150)+1,"") -> 150 | H151: =IFERROR(INDEX($A$2:$A$298,MATCH(ROWS($G$2:G151),$G$2:$G$298,0)),"") -> Kézi- és gépszerszámgyártás
A152: Kézműipari textiláruk előállítása | B152: 3 | C152: 2400 | G152: =IF(--ISNUMBER(SEARCH(tev.lista,A152)),MAX($G$1:G151)+1,"") -> 151 | H152: =IFERROR(INDEX($A$2:$A$298,MATCH(ROWS($G$2:G152),$G$2:$G$298,0)),"") -> Kézműipari textiláruk előállítása
A153: Kisállatkozmetika | B153: 4 | C153: 1800 | G153: =IF(--ISNUMBER(SEARCH(tev.lista,A153)),MAX($G$1:G152)+1,"") -> 152 | H153: =IFERROR(INDEX($A$2:$A$298,MATCH(ROWS($G$2:G153),$G$2:$G$298,0)),"") -> Kisállatkozmetika
A154: Kisállatkereskedés | B154: 2 | C154: 1200 | G154: =IF(--ISNUMBER(SEARCH(tev.lista,A154)),MAX($G$1:G153)+1,"") -> 153 | H154: =IFERROR(INDEX($A$2:$A$298,MATCH(ROWS($G$2:G154),$G$2:$G$298,0)),"") -> Kisállatkereskedés
A155: Klímaberendezések forgalmazása, telepítése | B155: 5 | C155: 4200 | G155: =IF(--ISNUMBER(SEARCH(tev.lista,A155)),MAX($G$1:G154)+1,"") -> 154 | H155: =IFERROR(INDEX($A$2:$A$298,MATCH(ROWS($G$2:G155),$G$2:$G$298,0)),"") -> Klímaberendezések forgalmazása, telepítése
A156: Klímaberendezések gyártása | B156: 3 | C156: 2400 | G156: =IF(--ISNUMBER(SEARCH(tev.lista,A156)),MAX($G$1:G155)+1,"") -> 155 | H156: =IFERROR(INDEX($A$2:$A$298,MATCH(ROWS($G$2:G156),$G$2:$G$298,0)),"") -> Klímaberendezések gyártása
A157: Konfekció kereskedelem | B157: 2 | C157: 1200 | G157: =IF(--ISNUMBER(SEARCH(tev.lista,A157)),MAX($G$1:G156)+1,"") -> 156 | H157: =IFERROR(INDEX($A$2:$A$298,MATCH(ROWS($G$2:G157),$G$2:$G$298,0)),"") -> Konfekció kereskedelem
A158: Konfekcióáruk gyártása (textil) | B158: 3 | C158: 2400 | G158: =IF(--ISNUMBER(SEARCH(tev.lista,A158)),MAX($G$1:G157)+1,"") -> 157 | H158: =IFERROR(INDEX($A$2:$A$298,MATCH(ROWS($G$2:G158),$G$2:$G$298,0)),"") -> Konfekcióáruk gyártása (textil)
A159: Konzervgyártás és egyéb tartósított termékek előállítása | B159: 3 | C159: 2400 | G159: =IF(--ISNUMBER(SEARCH(tev.lista,A159)),MAX($G$1:G158)+1,"") -> 158 | H159: =IFERROR(INDEX($A$2:$A$298,MATCH(ROWS($G$2:G159),$G$2:$G$298,0)),"") -> Konzervgyártás és egyéb tartósított termékek előállítása
A160: Konyhabútor és konyhafelszerelési cikkek kereskedelme | B160: 2 | C160: 1200 | G160: =IF(--ISNUMBER(SEARCH(tev.lista,A160)),MAX($G$1:G159)+1,"") -> 159 | H160: =IFERROR(INDEX($A$2:$A$298,MATCH(ROWS($G$2:G160),$G$2:$G$298,0)),"") -> Konyhabútor és konyhafelszerelési cikkek kereskedelme
A161: Kozmetikai cikk, illatszer kereskedelem (drogéria) | B161: 4 | C161: 1200 | G161: =IF(--ISNUMBER(SEARCH(tev.lista,A161)),MAX($G$1:G160)+1,"") -> 160 | H161: =IFERROR(INDEX($A$2:$A$298,MATCH(ROWS($G$2:G161),$G$2:$G$298,0)),"") -> Kozmetikai cikk, illatszer kereskedelem (drogéria)
A162: Kozmetikai szalon | B162: 4 | C162: 1800 | G162: =IF(--ISNUMBER(SEARCH(tev.lista,A162)),MAX($G$1:G161)+1,"") -> 161 | H162: =IFERROR(INDEX($A$2:$A$298,MATCH(ROWS($G$2:G162),$G$2:$G$298,0)),"") -> Kozmetikai szalon
A163: Könyv- és lapnyomás | B163: 4 | C163: 2400 | G163: =IF(--ISNUMBER(SEARCH(tev.lista,A163)),MAX($G$1:G162)+1,"") -> 162 | H163: =IFERROR(INDEX($A$2:$A$298,MATCH(ROWS($G$2:G163),$G$2:$G$298,0)),"") -> Könyv- és lapnyomás
A164: Könyvkereskedés | B164: 2 | C164: 1200 | G164: =IF(--ISNUMBER(SEARCH(tev.lista,A164)),MAX($G$1:G163)+1,"") -> 163 | H164: =IFERROR(INDEX($A$2:$A$298,MATCH(ROWS($G$2:G164),$G$2:$G$298,0)),"") -> Könyvkereskedés
A165: Könyvkötés | B165: 4 | C165: 1800 | G165: =IF(--ISNUMBER(SEARCH(tev.lista,A165)),MAX($G$1:G164)+1,"") -> 164 | H165: =IFERROR(INDEX($A$2:$A$298,MATCH(ROWS($G$2:G165),$G$2:$G$298,0)),"") -> Könyvkötés
A166: Könyvtári tevékenység | B166: 1 | C166: 600 | G166: =IF(--ISNUMBER(SEARCH(tev.lista,A166)),MAX($G$1:G165)+1,"") -> 165 | H166: =IFERROR(INDEX($A$2:$A$298,MATCH(ROWS($G$2:G166),$G$2:$G$298,0)),"") -> Könyvtári tevékenység
A167: Kötött kelmék és cikkek gyártása | B167: 3 | C167: 2400 | G167: =IF(--ISNUMBER(SEARCH(tev.lista,A167)),MAX($G$1:G166)+1,"") -> 166 | H167: =IFERROR(INDEX($A$2:$A$298,MATCH(ROWS($G$2:G167),$G$2:$G$298,0)),"") -> Kötött kelmék és cikkek gyártása
A168: Kötöttáru kereskedelem | B168: 2 | C168: 1200 | G168: =IF(--ISNUMBER(SEARCH(tev.lista,A168)),MAX($G$1:G167)+1,"") -> 167 | H168: =IFERROR(INDEX($A$2:$A$298,MATCH(ROWS($G$2:G168),$G$2:$G$298,0)),"") -> Kötöttáru kereskedelem
A169: Közhasználatú fémtömegcikkek gyártása | B169: 4 | C169: 2400 | G169: =IF(--ISNUMBER(SEARCH(tev.lista,A169)),MAX($G$1:G168)+1,"") -> 168 | H169: =IFERROR(INDEX($A$2:$A$298,MATCH(ROWS($G$2:G169),$G$2:$G$298,0)),"") -> Közhasználatú fémtömegcikkek gyártása
A170: Központi fűtési kazán és radiátor gyártása | B170: 4 | C170: 2400 | G170: =IF(--ISNUMBER(SEARCH(tev.lista,A170)),MAX($G$1:G169)+1,"") -> 169 | H170: =IFERROR(INDEX($A$2:$A$298,MATCH(ROWS($G$2:G170),$G$2:$G$298,0)),"") -> Központi fűtési kazán és radiátor gyártása
A171: Közszükségleti fémtömegcikk (zár, lakat, csavar, szeg stb.) kereskedelem | B171: 2 | C171: 1200 | G171: =IF(--ISNUMBER(SEARCH(tev.lista,A171)),MAX($G$1:G170)+1,"") -> 170 | H171: =IFERROR(INDEX($A$2:$A$298,MATCH(ROWS($G$2:G171),$G$2:$G$298,0)),"") -> Közszükségleti fémtömegcikk (zár, lakat, csavar, szeg stb.) kereskedelem
A172: Kulcsmásolás | B172: 4 | C172: 1800 | G172: =IF(--ISNUMBER(SEARCH(tev.lista,A172)),MAX($G$1:G171)+1,"") -> 171 | H172: =IFERROR(INDEX($A$2:$A$298,MATCH(ROWS($G$2:G172),$G$2:$G$298,0)),"") -> Kulcsmásolás
A173: Kultúrcikk kereskedelem | B173: 2 | C173: 1200 | G173: =IF(--ISNUMBER(SEARCH(tev.lista,A173)),MAX($G$1:G172)+1,"") -> 172 | H173: =IFERROR(INDEX($A$2:$A$298,MATCH(ROWS($G$2:G173),$G$2:$G$298,0)),"") -> Kultúrcikk kereskedelem
A174: Lábbeligyártás | B174: 3 | C174: 2400 | G174: =IF(--ISNUMBER(SEARCH(tev.lista,A174)),MAX($G$1:G173)+1,"") -> 173 | H174: =IFERROR(INDEX($A$2:$A$298,MATCH(ROWS($G$2:G174),$G$2:$G$298,0)),"") -> Lábbeligyártás
A175: Lakásfelszerelési cikkek (kivéve bútor) kereskedelme | B175: 2 | C175: 1200 | G175: =IF(--ISNUMBER(SEARCH(tev.lista,A175)),MAX($G$1:G174)+1,"") -> 174 | H175: =IFERROR(INDEX($A$2:$A$298,MATCH(ROWS($G$2:G175),$G$2:$G$298,0)),"") -> Lakásfelszerelési cikkek (kivéve bútor) kereskedelme
A176: Lakásszerviz szolgáltatás (zár-, villany-, víz stb. szerelés) | B176: 4 | C176: 1800 | G176: =IF(--ISNUMBER(SEARCH(tev.lista,A176)),MAX($G$1:G175)+1,"") -> 175 | H176: =IFERROR(INDEX($A$2:$A$298,MATCH(ROWS($G$2:G176),$G$2:$G$298,0)),"") -> Lakásszerviz szolgáltatás (zár-, villany-, víz stb. szerelés)
A177: Látszerész, optikai kereskedés | B177: 2 | C177: 1200 | G177: =IF(--ISNUMBER(SEARCH(tev.lista,A177)),MAX($G$1:G176)+1,"") -> 176 | H177: =IFERROR(INDEX($A$2:$A$298,MATCH(ROWS($G$2:G177),$G$2:$G$298,0)),"") -> Látszerész, optikai kereskedés
A178: Látszerészeti és optikai eszközök javítása | B178: 4 | C178: 1800 | G178: =IF(--ISNUMBER(SEARCH(tev.lista,A178)),MAX($G$1:G177)+1,"") -> 177 | H178: =IFERROR(INDEX($A$2:$A$298,MATCH(ROWS($G$2:G178),$G$2:$G$298,0)),"") -> Látszerészeti és optikai eszközök javítása
A179: Látszerészeti, optikai és fényképészeti eszközök gyártása | B179: 3 | C179: 2400 | G179: =IF(--ISNUMBER(SEARCH(tev.lista,A179)),MAX($G$1:G178)+1,"") -> 178 | H179: =IFERROR(INDEX($A$2:$A$298,MATCH(ROWS($G$2:G179),$G$2:$G$298,0)),"") -> Látszerészeti, optikai és fényképészeti eszközök gyártása
A180: Len- és kenderfonás, szövés | B180: 3 | C180: 2400 | G180: =IF(--ISNUMBER(SEARCH(tev.lista,A180)),MAX($G$1:G179)+1,"") -> 179 | H180: =IFERROR(INDEX($A$2:$A$298,MATCH(ROWS($G$2:G180),$G$2:$G$298,0)),"") -> Len- és kenderfonás, szövés
A181: Malomipari termékek kereskedelme | B181: 2 | C181: 1200 | G181: =IF(--ISNUMBER(SEARCH(tev.lista,A181)),MAX($G$1:G180)+1,"") -> 180 | H181: =IFERROR(INDEX($A$2:$A$298,MATCH(ROWS($G$2:G181),$G$2:$G$298,0)),"") -> Malomipari termékek kereskedelme
A182: Manikűr és pedikűr | B182: 4 | C182: 1800 | G182: =IF(--ISNUMBER(SEARCH(tev.lista,A182)),MAX($G$1:G181)+1,"") -> 181 | H182: =IFERROR(INDEX($A$2:$A$298,MATCH(ROWS($G$2:G182),$G$2:$G$298,0)),"") -> Manikűr és pedikűr
A183: Melegburkoló (parketta, szőnyegpadló stb.) | B183: 5 | C183: 4200 | G183: =IF(--ISNUMBER(SEARCH(tev.lista,A183)),MAX($G$1:G182)+1,"") -> 182 | H183: =IFERROR(INDEX($A$2:$A$298,MATCH(ROWS($G$2:G183),$G$2:$G$298,0)),"") -> Melegburkoló (parketta, szőnyegpadló stb.)
A184: Mérés- és irányítástechnikai berendezések gyártása | B184: 3 | C184: 2400 | G184: =IF(--ISNUMBER(SEARCH(tev.lista,A184)),MAX($G$1:G183)+1,"") -> 183 | H184: =IFERROR(INDEX($A$2:$A$298,MATCH(ROWS($G$2:G184),$G$2:$G$298,0)),"") -> Mérés- és irányítástechnikai berendezések gyártása
A185: Mérőműszergyártás | B185: 3 | C185: 2400 | G185: =IF(--ISNUMBER(SEARCH(tev.lista,A185)),MAX($G$1:G184)+1,"") -> 184 | H185: =IFERROR(INDEX($A$2:$A$298,MATCH(ROWS($G$2:G185),$G$2:$G$298,0)),"") -> Mérőműszergyártás
A186: Mezőgazdasági gépgyártás | B186: 3 | C186: 2400 | G186: =IF(--ISNUMBER(SEARCH(tev.lista,A186)),MAX($G$1:G185)+1,"") -> 185 | H186: =IFERROR(INDEX($A$2:$A$298,MATCH(ROWS($G$2:G186),$G$2:$G$298,0)),"") -> Mezőgazdasági gépgyártás
A187: Mezőgazdasági- és kertészeti szaküzlet (kisgépek nélkül) | B187: 2 | C187: 1200 | G187: =IF(--ISNUMBER(SEARCH(tev.lista,A187)),MAX($G$1:G186)+1,"") -> 186 | H187: =IFERROR(INDEX($A$2:$A$298,MATCH(ROWS($G$2:G187),$G$2:$G$298,0)),"") -> Mezőgazdasági- és kertészeti szaküzlet (kisgépek nélkül)
A188: Mezőgazdasági gép nagykereskedelem, javítás | B188: 2 | C188: 1800 | G188: =IF(--ISNUMBER(SEARCH(tev.lista,A188)),MAX($G$1:G187)+1,"") -> 187 | H188: =IFERROR(INDEX($A$2:$A$298,MATCH(ROWS($G$2:G188),$G$2:$G$298,0)),"") -> Mezőgazdasági gép nagykereskedelem, javítás
A189: Mezőgazdasági gépállomás (gépjavítás, karbantartás) | B189: 4 | C189: 1800 | G189: =IF(--ISNUMBER(SEARCH(tev.lista,A189)),MAX($G$1:G188)+1,"") -> 188 | H189: =IFERROR(INDEX($A$2:$A$298,MATCH(ROWS($G$2:G189),$G$2:$G$298,0)),"") -> Mezőgazdasági gépállomás (gépjavítás, karbantartás)
A190: Mezőgazdasági gépek és eszközök kereskedelme | B190: 2 | C190: 1200 | G190: =IF(--ISNUMBER(SEARCH(tev.lista,A190)),MAX($G$1:G189)+1,"") -> 189 | H190: =IFERROR(INDEX($A$2:$A$298,MATCH(ROWS($G$2:G190),$G$2:$G$298,0)),"") -> Mezőgazdasági gépek és eszközök kereskedelme
A191: Mosás, vegytisztítás, textilfestés | B191: 4 | C191: 1800 | G191: =IF(--ISNUMBER(SEARCH(tev.lista,A191)),MAX($G$1:G190)+1,"") -> 190 | H191: =IFERROR(INDEX($A$2:$A$298,MATCH(ROWS($G$2:G191),$G$2:$G$298,0)),"") -> Mosás, vegytisztítás, textilfestés
A192: Munkásszállás | B192: 3 | C192: 1800 | G192: =IF(--ISNUMBER(SEARCH(tev.lista,A192)),MAX($G$1:G191)+1,"") -> 191 | H192: =IFERROR(INDEX($A$2:$A$298,MATCH(ROWS($G$2:G192),$G$2:$G$298,0)),"") -> Munkásszállás
A193: Munkavédelmi termékek kis- és nagykereskedelme | B193: 2 | C193: 1200 | G193: =IF(--ISNUMBER(SEARCH(tev.lista,A193)),MAX($G$1:G192)+1,"") -> 192 | H193: =IFERROR(INDEX($A$2:$A$298,MATCH(ROWS($G$2:G193),$G$2:$G$298,0)),"") -> Munkavédelmi termékek kis- és nagykereskedelme
A194: Műanyagalapanyag-gyártás | B194: 4 | C194: 2400 | G194: =IF(--ISNUMBER(SEARCH(tev.lista,A194)),MAX($G$1:G193)+1,"") -> 193 | H194: =IFERROR(INDEX($A$2:$A$298,MATCH(ROWS($G$2:G194),$G$2:$G$298,0)),"") -> Műanyagalapanyag-gyártás
A195: Műanyagalapú hő-, hang- és vízszigetelő anyagok gyártása | B195: 3 | C195: 2400 | G195: =IF(--ISNUMBER(SEARCH(tev.lista,A195)),MAX($G$1:G194)+1,"") -> 194 | H195: =IFERROR(INDEX($A$2:$A$298,MATCH(ROWS($G$2:G195),$G$2:$G$298,0)),"") -> Műanyagalapú hő-, hang- és vízszigetelő anyagok gyártása
A196: Műanyag bevonatok készítése szinterezéssel | B196: 4 | C196: 1800 | G196: =IF(--ISNUMBER(SEARCH(tev.lista,A196)),MAX($G$1:G195)+1,"") -> 195 | H196: =IFERROR(INDEX($A$2:$A$298,MATCH(ROWS($G$2:G196),$G$2:$G$298,0)),"") -> Műanyag bevonatok készítése szinterezéssel
A197: Műanyag termékek gyártása | B197: 4 | C197: 2400 | G197: =IF(--ISNUMBER(SEARCH(tev.lista,A197)),MAX($G$1:G196)+1,"") -> 196 | H197: =IFERROR(INDEX($A$2:$A$298,MATCH(ROWS($G$2:G197),$G$2:$G$298,0)),"") -> Műanyag termékek gyártása
A198: Műbőr és viaszosvászongyártás | B198: 3 | C198: 2400 | G198: =IF(--ISNUMBER(SEARCH(tev.lista,A198)),MAX($G$1:G197)+1,"") -> 197 | H198: =IFERROR(INDEX($A$2:$A$298,MATCH(ROWS($G$2:G198),$G$2:$G$298,0)),"") -> Műbőr és viaszosvászongyártás
A199: Műszaki cikkek kereskedelme | B199: 2 | C199: 1200 | G199: =IF(--ISNUMBER(SEARCH(tev.lista,A199)),MAX($G$1:G198)+1,"") -> 198 | H199: =IFERROR(INDEX($A$2:$A$298,MATCH(ROWS($G$2:G199),$G$2:$G$298,0)),"") -> Műszaki cikkek kereskedelme
A200: Műszergyártás | B200: 3 | C200: 2400 | G200: =IF(--ISNUMBER(SEARCH(tev.lista,A200)),MAX($G$1:G199)+1,"") -> 199 | H200: =IFERROR(INDEX($A$2:$A$298,MATCH(ROWS($G$2:G200),$G$2:$G$298,0)),"") -> Műszergyártás
... 98 more rows
